2CCN - Level 2 Cost Centre Name,,9CCN - Level 9 Cost Centre Name,9CCC - Level 9 Cost Centre Code,9AN - Level 9 Account Name,9AC - Level 9 Account Code,Transaction Description,Date Paid,Transaction Reference,Analysed Amount,2AC - Level 2 Account Codes,Supplier Name,Supplier Code
Gloucester City Council,23UE,Civica Admin Charges,RT105,Postages,5400,acct 0870585007 post 20/6-8/7,01/08/2016,421764,1464.29,NET,Royal Mail S.Wales & South West,35830S
Gloucester City Council,23UE,Corporate Reporting /Financing,RC504,Audit Fees,5383,Q1 audit statement of accounts 2016-17,01/08/2016,421761,15862.5,NET,Kpmg,06498X
Gloucester City Council,23UE,Corporate Reporting /Financing,RC504,Audit Fees,5383,Q1 grant claims certification 2016-17,01/08/2016,421762,1760.75,NET,Kpmg,06498X
Gloucester City Council,23UE,Grants To Voluntary Sector,FG100,Members Allocation Fund,7100F,members allocation grant,01/08/2016,422032,500,NET,Hucclecote Community Association,23020B
Gloucester City Council,23UE,Homelessness,CH120,Rent In Advance,5516,RIA & DEPOSIT,01/08/2016,422033,489.44,NET,Michael Tuck,17446P
Gloucester City Council,23UE,Homelessness Prevention,CH122,Fees For Services Received,5350,RIA & DEPOSIT,01/08/2016,422033,500,NET,Michael Tuck,17446P
Gloucester City Council,23UE,Allotments,HI104,Water Supply,3400,Consumption Savings APR16,02/08/2016,419145,226.82,NET,Advanced Demand Side Management Ltd,16229K
Gloucester City Council,23UE,Allotments,HI104,Water Supply,3400,Consumption savings MAY16,02/08/2016,419986,248.98,NET,Advanced Demand Side Management Ltd,16229K
Gloucester City Council,23UE,Bus Station,RB400,Water Supply,3400,Consumption Savings APR16,02/08/2016,419145,37.71,NET,Advanced Demand Side Management Ltd,16229K
Gloucester City Council,23UE,Bus Station,RB400,Water Supply,3400,Consumption savings MAY16,02/08/2016,419986,39,NET,Advanced Demand Side Management Ltd,16229K
Gloucester City Council,23UE,City Museum And Art Gallery,LM200,Water Supply,3400,Consumption Savings APR16,02/08/2016,419145,4.86,NET,Advanced Demand Side Management Ltd,16229K
Gloucester City Council,23UE,City Museum And Art Gallery,LM200,Water Supply,3400,Consumption savings MAY16,02/08/2016,419986,5.02,NET,Advanced Demand Side Management Ltd,16229K
Gloucester City Council,23UE,Civica Contract Revs & Bens,RT250,Contracted Services,6970,JUN16 pension excess charge,02/08/2016,421505,10843.52,NET,Civica Uk Ltd,10841X
Gloucester City Council,23UE,REDACTED,REDACTED,REDACTED,REDACTED,REDACTED,02/08/2016,REDACTED,150,NET,REDACTED,REDACTED
Gloucester City Council,23UE,Client Revs & Bens Contract,RT240,Fees For Services Received,5350,DHP UC Payment - 40039648,02/08/2016,422052,215.02,NET,Gloucester City Homes,05244T
Gloucester City Council,23UE,Client Revs & Bens Contract,RT240,Fees For Services Received,5350,DHP UC Payment - 35100393,02/08/2016,422053,166.27,NET,Gloucester City Homes,05244T
Gloucester City Council,23UE,Council Streetcare Team,HI101,Water Supply,3400,Consumption Savings APR16,02/08/2016,419145,10.52,NET,Advanced Demand Side Management Ltd,16229K
Gloucester City Council,23UE,Council Streetcare Team,HI101,Water Supply,3400,Consumption savings MAY16,02/08/2016,419986,10.87,NET,Advanced Demand Side Management Ltd,16229K
Gloucester City Council,23UE,Countryside Unit,LP201,Water Supply,3400,Consumption Savings APR16,02/08/2016,419145,41.02,NET,Advanced Demand Side Management Ltd,16229K
Gloucester City Council,23UE,Countryside Unit,LP201,Water Supply,3400,Consumption savings MAY16,02/08/2016,419986,42.4,NET,Advanced Demand Side Management Ltd,16229K
Gloucester City Council,23UE,Folk Museum,LM210,Water Supply,3400,Consumption Savings APR16,02/08/2016,419145,3.9,NET,Advanced Demand Side Management Ltd,16229K
Gloucester City Council,23UE,Folk Museum,LM210,Water Supply,3400,Consumption savings MAY16,02/08/2016,419986,4.03,NET,Advanced Demand Side Management Ltd,16229K
Gloucester City Council,23UE,Gloucester Guildhall,LA100,Water Supply,3400,Consumption Savings APR16,02/08/2016,419145,-8,NET,Advanced Demand Side Management Ltd,16229K
Gloucester City Council,23UE,Gloucester Guildhall,LA100,Water Supply,3400,Consumption savings MAY16,02/08/2016,419986,3.41,NET,Advanced Demand Side Management Ltd,16229K
Gloucester City Council,23UE,REDACTED,REDACTED,REDACTED,REDACTED,REDACTED,02/08/2016,REDACTED,6080,NET,REDACTED,REDACTED
Gloucester City Council,23UE,Guildhall Bar And Caf�,LA210,Catering Provisions -Food,5110,milk,02/08/2016,421228,4.76,NET,Total Produce Gloucester,12645E
Gloucester City Council,23UE,Guildhall Bar And Caf�,LA210,Catering Provisions -Food,5110,milk,02/08/2016,421229,4.76,NET,Total Produce Gloucester,12645E
Gloucester City Council,23UE,Guildhall Bar And Caf�,LA210,Catering Provisions -Food,5110,Milk,02/08/2016,421318,4.76,NET,Total Produce Gloucester,12645E
Gloucester City Council,23UE,Guildhall Bar And Caf�,LA210,Catering Provisions -Food,5110,MILK,02/08/2016,421885,4.76,NET,Total Produce Gloucester,12645E
Gloucester City Council,23UE,Guildhall Bar And Caf�,LA210,Catering Provisions -Food,5110,MILK,02/08/2016,421886,4.76,NET,Total Produce Gloucester,12645E
Gloucester City Council,23UE,Guildhall Bar And Caf�,LA210,Catering Provisions -Food,5110,MILK,02/08/2016,421887,4.76,NET,Total Produce Gloucester,12645E
Gloucester City Council,23UE,Guildhall Bar And Caf�,LA210,Catering Provisions -Food,5110,MILK,02/08/2016,421889,4.76,NET,Total Produce Gloucester,12645E
Gloucester City Council,23UE,Guildhall Lettings,LA400,Artists Fees,5355,Studio 2- Client Sessions June 2016,02/08/2016,422054,30,NET,Gloucestershire Music Makers,13755L
Gloucester City Council,23UE,Guildhall Lettings,LA400,Sale Of Goods And Services,9230,Studio 2- Client Sessions June 2016,02/08/2016,422054,-6,NET,Gloucestershire Music Makers,13755L
Gloucester City Council,23UE,Investment Property,RB500,Water Supply,3400,aquafund agreement charges FEB16,02/08/2016,419788,63.27,NET,Advanced Demand Side Management Ltd,16229K
Gloucester City Council,23UE,Investment Property,RB500,Water Supply,3400,Consumption Savings APR16,02/08/2016,419145,50.93,NET,Advanced Demand Side Management Ltd,16229K
Gloucester City Council,23UE,Investment Property,RB500,Water Supply,3400,Consumption savings MAY16,02/08/2016,419986,52.61,NET,Advanced Demand Side Management Ltd,16229K
Gloucester City Council,23UE,Investment Property,RB500,Water Supply,3400,Tariff Savings April 2016,02/08/2016,419146,74.42,NET,Advanced Demand Side Management Ltd,16229K
Gloucester City Council,23UE,Investment Property,RB500,Water Supply,3400,Tariff Savings May 2016,02/08/2016,419987,61.68,NET,Advanced Demand Side Management Ltd,16229K
Gloucester City Council,23UE,Off Street Car Parks,PP110,Water Supply,3400,aquafund agreement charges FEB16,02/08/2016,419788,12.82,NET,Advanced Demand Side Management Ltd,16229K
Gloucester City Council,23UE,Off Street Car Parks,PP110,Water Supply,3400,Tariff Savings April 2016,02/08/2016,419146,13.56,NET,Advanced Demand Side Management Ltd,16229K
Gloucester City Council,23UE,Off Street Car Parks,PP110,Water Supply,3400,Tariff Savings May 2016,02/08/2016,419987,13.57,NET,Advanced Demand Side Management Ltd,16229K
Gloucester City Council,23UE,Play Area Refurbishment,LY071,Contract Payments,0020,Alma Place Play Area,02/08/2016,419374,1950,CAP,Greenfields Garden Services Ltd,48130G
Gloucester City Council,23UE,Public Conveniences (Client),HI400,Water Supply,3400,aquafund agreement charges FEB16,02/08/2016,419788,86,NET,Advanced Demand Side Management Ltd,16229K
Gloucester City Council,23UE,Public Conveniences (Client),HI400,Water Supply,3400,Consumption Savings APR16,02/08/2016,419145,10.75,NET,Advanced Demand Side Management Ltd,16229K
Gloucester City Council,23UE,Public Conveniences (Client),HI400,Water Supply,3400,Consumption savings MAY16,02/08/2016,419986,11.09,NET,Advanced Demand Side Management Ltd,16229K
Gloucester City Council,23UE,Public Conveniences (Client),HI400,Water Supply,3400,Tariff Savings April 2016,02/08/2016,419146,81.91,NET,Advanced Demand Side Management Ltd,16229K
Gloucester City Council,23UE,Public Conveniences (Client),HI400,Water Supply,3400,Tariff Savings May 2016,02/08/2016,419987,81.91,NET,Advanced Demand Side Management Ltd,16229K
Gloucester City Council,23UE,Registration Of Electors,RS400,Fees For Services Received,5350,Hire of premises Elections-  Colwell,02/08/2016,420849,640,NET,Gloucestershire County Council,18650D
Gloucester City Council,23UE,Utilities,PT502,Electricity Supply,3110,JUN16 gas & electric supplies,02/08/2016,421600,3286.09,NET,West Mercia Energy,11669Z
Gloucester City Council,23UE,Utilities,PT502,Electricity Supply,3110,Utility Charges Jun 16,02/08/2016,421204,723.13,NET,West Mercia Energy,11669Z
Gloucester City Council,23UE,Utilities,PT502,Gas Supply,3100,JUN16 gas & electric supplies,02/08/2016,421600,9535.76,NET,West Mercia Energy,11669Z
Gloucester City Council,23UE,Utilities,PT502,Gas Supply,3100,Utility Charges Jun 16,02/08/2016,421204,11489.23,NET,West Mercia Energy,11669Z
Gloucester City Council,23UE,Youth Grant 2011/12,FP107,Grants,7100C,Youth Grant 2016/17,02/08/2016,422055,2500,NET,Together In Matson,53760RV
Gloucester City Council,23UE,Youth Grant 2011/12,FP107,Grants,7100C,Youth Grant 2016/17,02/08/2016,422056,2500,NET,The Friendship Cafe Ltd,14853A
Gloucester City Council,23UE,Youth Grant 2011/12,FP107,Grants,7100C,Youth Grant 2016/17,02/08/2016,422057,2350,NET,Glo-Active,12365P
Gloucester City Council,23UE,Youth Grant 2011/12,FP107,Grants,7100C,Youth Grant 2016/17,02/08/2016,422058,2500,NET,Gloucestershire Bike Project,12778H
Gloucester City Council,23UE,Youth Grant 2011/12,FP107,Grants,7100C,Youth Grant 2016/17,02/08/2016,422059,2437,NET,Active Connections,65827RV
Gloucester City Council,23UE,Youth Grant 2011/12,FP107,Grants,7100C,Youth Grant 2016/17,02/08/2016,422060,300,NET,My:Uk,10755R
Gloucester City Council,23UE,Youth Grant 2011/12,FP107,Grants,7100C,Youth Grant 2016/17,02/08/2016,422062,300,NET,Infobuzz Ltd,4743C
Gloucester City Council,23UE,Cemeteries,HC300,Grave Indicators,5054,plaque,03/08/2016,422101,180,NET,Arkell & Hurcombe,59812T
Gloucester City Council,23UE,Cemeteries,HC300,Major R And M - Vehicles,4010,danarm strimmer,03/08/2016,422111,308,NET,Garden Machinery Gloucester,55641K
Gloucester City Council,23UE,Cemeteries,HC300,Routine R And M - Vehicles,4011,strimmer service,03/08/2016,422112,9.5,NET,Garden Machinery Gloucester,55641K
Gloucester City Council,23UE,City Museum And Art Gallery,LM200,Exhibits And Collections,5038,PJ Crook exhibition boards,03/08/2016,422070,135,NET,Alpha Colour Printers Ltd,00945B
Gloucester City Council,23UE,Community Safety Projects,FP500,Hospitality,5122,room hire,03/08/2016,422120,48.4,NET,Aspire Sports & Cultural Trust,08135V
Gloucester City Council,23UE,Docks Complex - Services,RB100,Operational Equipment <5000,5012,access passes & ribbons,03/08/2016,422091,210,NET,Bannerbridge Plc,13703G
Gloucester City Council,23UE,Economic Development,FP300,Business Grant,7116,50% business rent grant,03/08/2016,422108,1500,NET,Cupid Couture,17169T
Gloucester City Council,23UE,Food Safety,HE100,Hospitality,5122,room hire - public protection,03/08/2016,422117,82.4,NET,Aspire Sports & Cultural Trust,08135V
Gloucester City Council,23UE,REDACTED,REDACTED,REDACTED,REDACTED,REDACTED,03/08/2016,REDACTED,340,NET,REDACTED,REDACTED
Gloucester City Council,23UE,REDACTED,REDACTED,REDACTED,REDACTED,REDACTED,03/08/2016,REDACTED,530,NET,REDACTED,REDACTED
Gloucester City Council,23UE,Inhouse Training,EH200,Vocational Training,2970,EFAW 8/7/16,03/08/2016,422170,180,NET,Aspire Sports & Cultural Trust,08135V
Gloucester City Council,23UE,Off Street Car Parks,PP110,Computer Software Maintenance,5427,DVLA Service,03/08/2016,421213,43.7,NET,Chipside Ltd,06535T
Gloucester City Council,23UE,Ranger Centre/Netheridge Wks,RY167,Contract Payments,0020,oil seal,03/08/2016,422072,133,CAP,A C Belting Ltd,00250X
Gloucester City Council,23UE,Vehicles,RS140,Routine R And M - Vehicles,4011,service,03/08/2016,422080,372.44,NET,123 Car & Commercial,07651E
Gloucester City Council,23UE,Allotments,HI104,Fees For Services Received,5350,mower,04/08/2016,422231,259,NET,Machine Mart Ltd*,55207G
Gloucester City Council,23UE,Asset Management,RS300,General Repair/Maint Buildings,3000,St Oswalds Priory CDM,04/08/2016,422118,250,NET,Goddard Consulting Llp,10598G
Gloucester City Council,23UE,Barge Arm Car Spaces,RB551,Service Charges,3020,s/c OCT15-SEPT16,04/08/2016,422086,1650,NET,Ash & Co Cs Llp (Barge Arm Car Park),12522Y
Gloucester City Council,23UE,Cctv Revenue Budget,FP501,Security Equipment Serv/Repair,3038,replacement DVR,04/08/2016,422190,880,NET,Eurolink Security & Technology Group,05166M
Gloucester City Council,23UE,Cemeteries,HC300,Major R And M - Vehicles,4010,danarm strimmer,04/08/2016,422176,308,NET,Garden Machinery Gloucester,55641K
Gloucester City Council,23UE,Cemeteries,HC300,Repair/Maint Of Monuments,3004,rc 38/35,04/08/2016,422154,229.16,NET,Easy Mix Ltd,01403L
Gloucester City Council,23UE,Cemeteries,HC300,Routine R And M - Vehicles,4011,ferris service,04/08/2016,422156,202.79,NET,Garden Machinery Gloucester,55641K
Gloucester City Council,23UE,Cemeteries,HC300,Routine R And M - Vehicles,4011,stone saw,04/08/2016,422177,32.5,NET,Garden Machinery Gloucester,55641K
Gloucester City Council,23UE,Cemeteries,HC300,Routine R And M - Vehicles,4011,strimmer service,04/08/2016,422157,32,NET,Garden Machinery Gloucester,55641K
Gloucester City Council,23UE,Cems/Crems Admin,HC100,Office Equipment <5000,5010,tools,04/08/2016,422178,71.96,NET,Office Star Group Ltd,55874H
Gloucester City Council,23UE,City Museum And Art Gallery,LM200,Printing,5300,museum shop vinyls,04/08/2016,422151,30,NET,Alpha Colour Printers Ltd,00945B
Gloucester City Council,23UE,Civic Admin And Hospitality,RC210,Gifts And Prizes,7150,LAPEL BADGES,04/08/2016,421813,1549.2,NET,Thomas Fattorini Ltd,14975J
Gloucester City Council,23UE,Client Revs & Bens Contract,RT240,Bailiffs Fees,5368,June16 Dukes Direct recharge,04/08/2016,422121,1241.06,NET,Civica Uk Ltd,10841X
Gloucester City Council,23UE,Contaminated Land,HE301,Fees For Services Received,5350,AMY16 contaminated land work,04/08/2016,421068,1531.6,NET,Bromsgrove District Council,15037G
Gloucester City Council,23UE,Crematorium,HC200,Memorial Plaques,5053,plaques,04/08/2016,422148,102,NET,Arkell & Hurcombe,59812T
Gloucester City Council,23UE,Crematorium,HC200,Memorial Plaques,5053,plaques,04/08/2016,422149,96,NET,Arkell & Hurcombe,59812T
Gloucester City Council,23UE,Crematorium,HC200,Memorial Plaques,5053,plaques,04/08/2016,422150,318,NET,Arkell & Hurcombe,59812T
Gloucester City Council,23UE,Crematorium,HC200,National Assist Act Burial Exp,5593,funeral fees,04/08/2016,422155,685,NET,Selim Smith & Co Funeral Directors,15156X
Gloucester City Council,23UE,Crematorium,HC200,Repair/Maint Of Monuments,3004,sanctum tablet,04/08/2016,422153,206.5,NET,The Columbaria Company,55078T
Gloucester City Council,23UE,Development Management,PT200,Advertising And Publicity,5702,adverts 28/7/16,04/08/2016,422089,187.25,NET,Local World Ltd,08556P
Gloucester City Council,23UE,Docks Complex - Catering Servs,RB110,Sale Of Council Products,9220,buffet food,04/08/2016,422173,36.72,NET,Janes Pantry,24500W
Gloucester City Council,23UE,Docks Complex - Catering Servs,RB110,Sale Of Council Products,9220,buffet food,04/08/2016,422174,28.56,NET,Janes Pantry,24500W
Gloucester City Council,23UE,Flooding And Drainage,HE306,Maint Of Grounds - General,3030,Vegetation Works,04/08/2016,421247,180,NET,Rdb Safety Boat Ltd,13507J
Gloucester City Council,23UE,Flooding And Drainage,HE306,Maint Of Grounds - General,3030,Vegetation Works,04/08/2016,421248,135,NET,Rdb Safety Boat Ltd,13507J
Gloucester City Council,23UE,Hackney Carriages,HL100,Other Minor Supplies Services,5590,transcription service,04/08/2016,422175,100,NET,Bromsgrove District Council,15037G
Gloucester City Council,23UE,Homelessness,CH120,Fees For Services Received,5350,OOH homeless service,04/08/2016,418222,1800,NET,Tewkesbury Borough Council,43800C
Gloucester City Council,23UE,Kings Quarter,RY146,Contract Payments,0020,transport hub monitoring,04/08/2016,422074,4876,CAP,Aecom Ltd,12443V
Gloucester City Council,23UE,Kings Quarter,RY146,Contract Payments,0020,water main diversion Bus Station,04/08/2016,422244,14720.94,CAP,Severn Trent Water Ltd,02417P
Gloucester City Council,23UE,Off Street Car Parks,PP110,Computer Software Maintenance,5427,cashless parking 3rd party MAY-JUN16,04/08/2016,421744,3079.61,NET,Chipside Ltd,06535T
Gloucester City Council,23UE,Off Street Car Parks,PP110,Fees For Services Received,5350,SERVICES FOR PARKING KIT JUN-AUG16,04/08/2016,421814,613.74,NET,Parkeon Ltd,03238G
Gloucester City Council,23UE,Printing,RP103,Printing,5300,printing May 2016,04/08/2016,422113,516.64,NET,Alpha Colour Printers Ltd,00945B
Gloucester City Council,23UE,Registration Of Electors,RS400,Postages,5400,acct 0870585031 MAY16 services,04/08/2016,422230,7852.4,NET,Royal Mail S.Wales & South West,35830S
Gloucester City Council,23UE,Retail Market - Landlord,HM300,Trade Refuse Collection,3630,JUN16 food waste,04/08/2016,422068,120,NET,B & S Pointon Ltd,06253G
Gloucester City Council,23UE,Robinswoodhill Trading Account,LP203,Maint Of Grounds - General,3030,feedstuff,04/08/2016,422143,59.81,NET,John E Haith Ltd,15864K
Gloucester City Council,23UE,The Arbor,HC501,Catering Provisions -Food,5110,food,04/08/2016,422198,43.16,NET,Total Produce Gloucester,12645E
Gloucester City Council,23UE,The Arbor,HC501,Catering Provisions -Food,5110,food,04/08/2016,422199,14.69,NET,Total Produce Gloucester,12645E
Gloucester City Council,23UE,The Arbor,HC501,Catering Provisions -Food,5110,food,04/08/2016,422200,14.69,NET,Total Produce Gloucester,12645E
Gloucester City Council,23UE,The Arbor,HC501,Catering Provisions -Food,5110,food,04/08/2016,422201,32.19,NET,Total Produce Gloucester,12645E
Gloucester City Council,23UE,The Arbor,HC501,Catering Provisions -Food,5110,food,04/08/2016,422202,19.1,NET,Total Produce Gloucester,12645E
Gloucester City Council,23UE,The Arbor,HC501,Catering Provisions -Food,5110,food,04/08/2016,422203,67.77,NET,Total Produce Gloucester,12645E
Gloucester City Council,23UE,The Arbor,HC501,Catering Provisions -Food,5110,food,04/08/2016,422205,31.07,NET,Total Produce Gloucester,12645E
Gloucester City Council,23UE,The Arbor,HC501,Catering Provisions -Liquor,5111,drinks,04/08/2016,422100,58.97,NET,Cellar Supplies Cheltenham Ltd,01563L
Gloucester City Council,23UE,The Arbor,HC501,Cleaning Materials,3600,sanitary unit for Arbor,04/08/2016,422099,17.28,NET,Minster Cleaning Services,02158R
Gloucester City Council,23UE,Blackfriars,LA609,Rents,3200,Blackfriars lease fees,05/08/2016,420755,1833.02,NET,English Heritage,08249C
Gloucester City Council,23UE,City Museum Catering,LM202,Catering Provisions -Food,5110,milk,05/08/2016,422197,7.14,NET,Total Produce Gloucester,12645E
Gloucester City Council,23UE,REDACTED,REDACTED,REDACTED,REDACTED,REDACTED,05/08/2016,REDACTED,172,NET,REDACTED,REDACTED
Gloucester City Council,23UE,Development Management,PT200,Fees For Services Received,5350,temp staff w/c 18/7/16,05/08/2016,422115,1200,NET,The Oyster Partnership Limited,14900T
Gloucester City Council,23UE,Docks Complex - Castlemeads Cp,RB210,Contracted Services,6970,GC fixed overhead JUL16,05/08/2016,422082,773.48,NET,Apcoa Parking (Uk) Ltd,09954M
Gloucester City Council,23UE,Docks Complex - Castlemeads Cp,RB210,Contracted Services,6970,JUL16 GC vehicles,05/08/2016,422081,437.99,NET,Apcoa Parking (Uk) Ltd,09954M
Gloucester City Council,23UE,Docks Complex - Castlemeads Cp,RB210,Contracted Services,6970,JUL16 P&D Headcams,05/08/2016,422093,2128.03,NET,Apcoa Parking (Uk) Ltd,09954M
Gloucester City Council,23UE,REDACTED,REDACTED,REDACTED,REDACTED,REDACTED,05/08/2016,REDACTED,280,NET,REDACTED,REDACTED
Gloucester City Council,23UE,Guildhall Events,LA200,Advertising And Publicity,5702,MSB/YEARN TO LEARN FLYERS,05/08/2016,422277,95.8,NET,Fatflyers.Com,15810K
Gloucester City Council,23UE,REDACTED,REDACTED,REDACTED,REDACTED,REDACTED,05/08/2016,REDACTED,3039,NET,REDACTED,REDACTED
Gloucester City Council,23UE,Guildhall Events,LA200,Printing,5300,thermal tickets,05/08/2016,422171,1031.88,NET,Hague Computer Supplies Ltd,59713W
Gloucester City Council,23UE,REDACTED,REDACTED,REDACTED,REDACTED,REDACTED,05/08/2016,REDACTED,-1211.5,NET,REDACTED,REDACTED
Gloucester City Council,23UE,Homelessness Prevention,CH122,Basic Pay - Temporary Staff,2751,temporary staff,05/08/2016,422092,472.97,NET,Venn Group Ltd,04339P
Gloucester City Council,23UE,Off Street Car Parks,PP110,Contracted Services,6970,JUL16 GC vehicles,05/08/2016,422081,22.17,NET,Apcoa Parking (Uk) Ltd,09954M
Gloucester City Council,23UE,Off Street Car Parks,PP110,Contracted Services,6970,JUL16 other items,05/08/2016,422084,11455.49,NET,Apcoa Parking (Uk) Ltd,09954M
Gloucester City Council,23UE,Off Street Car Parks,PP110,Contracted Services,6970,JUL16 variable enforcement,05/08/2016,422083,4623.72,NET,Apcoa Parking (Uk) Ltd,09954M
Gloucester City Council,23UE,Senior Management Restructurin,RO200,Pension Contribs Incl Backf,2901,early retirement charges,05/08/2016,422234,52990.67,NET,Gloucestershire County Council,10614L
Gloucester City Council,23UE,Tourism Marketing,LT100,Operational Equipment <5000,5012,thermal tickets,05/08/2016,422167,619.08,NET,Hague Computer Supplies Ltd,59713W
Gloucester City Council,23UE,City Museum Catering,LM202,Catering Provisions -Food,5110,milk,08/08/2016,422295,4.76,NET,Total Produce Gloucester,12645E
Gloucester City Council,23UE,City Museum Catering,LM202,Catering Provisions -Food,5110,milk,08/08/2016,422296,7.14,NET,Total Produce Gloucester,12645E
Gloucester City Council,23UE,City Museum Catering,LM202,Catering Provisions -Food,5110,milk,08/08/2016,422297,4.76,NET,Total Produce Gloucester,12645E
Gloucester City Council,23UE,REDACTED,REDACTED,REDACTED,REDACTED,REDACTED,08/08/2016,REDACTED,179.14,NET,REDACTED,REDACTED
Gloucester City Council,23UE,Coll Fund Revenue Account,ZC100,County Council Precept,7460,PRECEPT PAYMENT DUE 31/8/16,08/08/2016,422340,4168751.7,NET,Gloucestershire County Council,18650D
Gloucester City Council,23UE,Coll Fund Revenue Account,ZC100,Nndr Central Share,7474,BRR POOLING PAYMENT DUE 22/8/16,08/08/2016,422339,424982,NET,Gloucestershire County Council,18650D
Gloucester City Council,23UE,Coll Fund Revenue Account,ZC100,Nndr Tariff,7473,BRR POOLING PAYMENT DUE 22/8/16,08/08/2016,422338,1331309,NET,Stroud District Council,74737T
Gloucester City Council,23UE,Coll Fund Revenue Account,ZC100,Police Precept,7461,PRECEPT PAYMENT DUE 31/8/16,08/08/2016,422341,773478.2,NET,"Police & Crime Commissioner, Gloucestershire",49521B
Gloucester City Council,23UE,Council Streetcare Team,HI101,Maint Of Grounds - General,3030,Innsworth Lane pitch improvement visit,08/08/2016,422313,100,NET,Gloucestershire Football Association Ltd,05240N
Gloucester City Council,23UE,Development Management,PT200,Microfilming / Cd-Rom Storage,5330,JUL16 archival storage,08/08/2016,422301,22,NET,Transmedia Technology Ltd,08635T
Gloucester City Council,23UE,Disabled Facilities Grants,CY013,Disabled Facility Grants,0074,MDF5182 FINAL FEES,08/08/2016,422335,5723.45,CAP,Mears Home Improvement Ltd,00096G
Gloucester City Council,23UE,Disabled Facilities Grants,CY013,Disabled Facility Grants,0074,RE MDF5206 INTERIM FEE,08/08/2016,422333,4070,CAP,Tpg Disableaids,51324R
Gloucester City Council,23UE,Employers Pension Contribs,ZR355,Pension Contribs Incl Backf,2901,PENSION DEFICIT FOR JULY 2016,08/08/2016,422337,238916.67,NET,Gloucestershire County Council,10614L
Gloucester City Council,23UE,Grants To Voluntary Sector,FG100,Abcd Grants,7100A,YOUR GLOUCESTER GRANT,08/08/2016,422336,500,NET,Carrie Godwin C/O The Beacon,16230B
Gloucester City Council,23UE,Guildhall Bar And Caf�,LA210,Catering Provisions -Liquor,5111,beergas,08/08/2016,422323,12.58,NET,Boc Ltd,59172L
Gloucester City Council,23UE,Guildhall Cinema,LA202,Hire Of Equipment,5020,monthly film transport,08/08/2016,422326,219.59,NET,Nft Logistics Ltd,13505N
Gloucester City Council,23UE,Guildhall Cinema,LA202,Maintenance Of Equipment,5030,xbo2000wdhp lamp for barco,08/08/2016,422307,666.25,NET,Arts Alliance Media Ltd,14477G
Gloucester City Council,23UE,REDACTED,REDACTED,REDACTED,REDACTED,REDACTED,08/08/2016,REDACTED,450,NET,REDACTED,REDACTED
Gloucester City Council,23UE,Human Resources,EH100,Fees For Services Received,5350,Payroll Charges June 2016,08/08/2016,421327,2834.45,NET,Gloucestershire County Council,18650D
Gloucester City Council,23UE,Human Resources,EH100,Fees For Services Received,5350,Payroll Charges May 2016,08/08/2016,419989,2769.11,NET,Gloucestershire County Council,18650D
Gloucester City Council,23UE,Kings Quarter,RY146,Contract Payments,0020,bus station professional services,08/08/2016,422327,1475,CAP,Julian Stokes Management Ltd,09046K
Gloucester City Council,23UE,Procurement Management,RP100,Printing,5300,print jobs done by print room,08/08/2016,421331,472.5,NET,Gloucestershire County Council,18650D
Gloucester City Council,23UE,Registration Of Electors,RS400,Fees For Services Received,5350,polling station EU Referendum,08/08/2016,422309,450,NET,Longlevens Rfc Ltd,02805A
Gloucester City Council,23UE,Rehousing,CH111,Publications,5060,Arden/Quiet Enjoyment,08/08/2016,422315,43.5,NET,Marston Book Services,56453D
Gloucester City Council,23UE,Safer Stronger Communities,FP841,Other Minor Supplies Services,5590,7 balloon bouquet,08/08/2016,422308,48,NET,Balloon Crazy,15531T
Gloucester City Council,23UE,Safer Stronger Communities,FP841,Other Minor Supplies Services,5590,designer card minder,08/08/2016,422302,129.95,NET,J N E Security Ltd,50340C
Gloucester City Council,23UE,The Arbor,HC501,Catering Provisions -Food,5110,food,08/08/2016,421308,117.29,NET,Janes Pantry,24500W
Gloucester City Council,23UE,The Arbor,HC501,Catering Provisions -Food,5110,food,08/08/2016,421599,149.14,NET,Janes Pantry,24500W
Gloucester City Council,23UE,The Arbor,HC501,Catering Provisions -Food,5110,food,08/08/2016,422241,125.97,NET,Janes Pantry,24500W
Gloucester City Council,23UE,The Arbor,HC501,Catering Provisions -Food,5110,Food,08/08/2016,422204,85.48,NET,Total Produce Gloucester,12645E
Gloucester City Council,23UE,The Arbor,HC501,Cleaning Materials,3600,crem sanitary units,08/08/2016,421039,34.56,NET,Minster Cleaning Services,02158R
Gloucester City Council,23UE,The Arbor,HC501,Cleaning Materials,3600,sanitary units,08/08/2016,422322,34.56,NET,Minster Cleaning Services,02158R
Gloucester City Council,23UE,Theatre Tokens,LT106,Materials For Sale,5080,tickets sold on commission,08/08/2016,422293,180,NET,Society Of London Theatre,05656Z
Gloucester City Council,23UE,Theatre Tokens,LT106,Sale Of Goods And Services,9230,tickets sold on commission,08/08/2016,422293,-9,NET,Society Of London Theatre,05656Z
Gloucester City Council,23UE,Tic Trading,LT110,Materials For Sale,5080,cards for resale,08/08/2016,422328,24.9,NET,Philip Mansergh Fine Art Publisher,00134A
Gloucester City Council,23UE,Tic Trading,LT110,Materials For Sale,5080,goods for resale,08/08/2016,422299,151.83,NET,Norfolk China Ltd,12863S
Gloucester City Council,23UE,Tourism Marketing,LT100,Window Cleaning,3610,JUN16 window cleaning,08/08/2016,422319,12,NET,Interserve Fs (Uk) Limited,00442K
Gloucester City Council,23UE,Blackfriars,LA609,Contract Cleaning,3620,Blackfriars cleaning JUL16,09/08/2016,422098,552.5,NET,Into Cleaning,14609P
Gloucester City Council,23UE,Gloucester Guildhall,LA100,Contract Cleaning,3620,APR-JUN16 sanitary waste,09/08/2016,420740,148.2,NET,Ocs Group Uk Limited T/A Cannon,06506A
Gloucester City Council,23UE,REDACTED,REDACTED,REDACTED,REDACTED,REDACTED,09/08/2016,REDACTED,320,NET,REDACTED,REDACTED
Gloucester City Council,23UE,Vehicles,RS140,Fuel,4012,vehicle fuel,09/08/2016,422292,64.36,NET,Allstar Business Solutions Ltd (Arval),06594A
Gloucester City Council,23UE,Cemeteries,HC300,Other Minor Supplies Services,5590,RANGE PAVING - HONEY,10/08/2016,421870,1233.07,NET,Buildbase Ltd,03692D
Gloucester City Council,23UE,City Museum And Art Gallery,LM200,Publications For Sale,5064,goods for resale,10/08/2016,421750,356.72,NET,Half Moon Bay Ltd,08240F
Gloucester City Council,23UE,Client Revs & Bens Contract,RT240,Fees For Services Received,5350,CCN P14 new burdens,10/08/2016,422065,29410,NET,Civica Uk Ltd,10841X
Gloucester City Council,23UE,Crematorium,HC200,"Seeds, Trees, Plants, Shrubs",3028,ROSES,10/08/2016,421873,89.13,NET,Chepstow Plantaria Ltd (T/A Norton Gard Cen),03212B
Gloucester City Council,23UE,Financial Services,RT200,Consultants Fees,5349,CONSULTANTS EXPENSES,10/08/2016,421842,99.44,NET,Civica Uk Ltd,10841X
Gloucester City Council,23UE,Financial Services,RT200,Vocational Training,2970,course fees,10/08/2016,422110,1523.34,NET,Kaplan Financial Ltd,17179P
Gloucester City Council,23UE,Kings Quarter,RY146,Contract Payments,0020,professional fees re creative delivery,10/08/2016,422071,2250,CAP,Lda Design Consulting Ltd,03500T
Gloucester City Council,23UE,Off Street Car Parks,PP110,General Repair/Maint Buildings,3000,LONGSMITH ST CAR PARK SERVICE,10/08/2016,421852,186.25,NET,Parkeon Ltd,03238G
Gloucester City Council,23UE,Blackfriars,LA609,Security Services Fees,5351,JULY 2016 SIA staff,11/08/2016,422239,475,NET,Nsgl Ltd (Security Acct),12539E
Gloucester City Council,23UE,Business Transformation & Tech,RT700,Internet Service Provider Fees,5429,Charges Jul - Aug 2016,11/08/2016,421311,80,NET,Virgin Media Payments Ltd,09376J
Gloucester City Council,23UE,Business Transformation & Tech,RT700,Internet Service Provider Fees,5429,Cllr James AUG16,11/08/2016,422317,30,NET,Virgin Media Payments Ltd,09376J
Gloucester City Council,23UE,Business Transformation & Tech,RT700,Licences,5703,GSI copnvergence framework APR-JUN16,11/08/2016,421765,2435.99,NET,Vodafone Ltd,11843H
Gloucester City Council,23UE,Business Transformation & Tech,RT700,Telephones And Fax,5410,ACCT 814639 JUN-JUL16 CALL CHARGES,11/08/2016,421749,123.7,NET,Virgin Media Business,01869B
Gloucester City Council,23UE,Cemeteries,HC300,Basic Pay - Temporary Staff,2751,temp staff w/e 24/07/16,11/08/2016,422107,439.88,NET,Premiere Employment Group Ltd,55468Z
Gloucester City Council,23UE,Cemeteries,HC300,Basic Pay - Temporary Staff,2751,temp staff w/e 31/7/16,11/08/2016,422304,439.88,NET,Premiere Employment Group Ltd,55468Z
Gloucester City Council,23UE,Cemeteries,HC300,Basic Pay - Temporary Staff,2751,temp staff w/e 24/7/16,11/08/2016,422106,439.88,NET,Premiere Employment Group Ltd,55468Z
Gloucester City Council,23UE,Cemeteries,HC300,Basic Pay - Temporary Staff,2751,temp staff w/e 31/7/16,11/08/2016,422305,439.88,NET,Premiere Employment Group Ltd,55468Z
Gloucester City Council,23UE,Cemeteries,HC300,Maint Of Grounds - General,3030,type 1 stone,11/08/2016,422212,265,NET,Allstone Sand & Gravel Aggregates Ltd,00940M
Gloucester City Council,23UE,Cemeteries,HC300,Operational Materials,5070,funeral cones,11/08/2016,422312,46.8,NET,Fibrous Ltd,15230L
Gloucester City Council,23UE,Cemeteries,HC300,Operational Materials,5070,RED SAND,11/08/2016,422211,87,NET,Allstone Sand & Gravel Aggregates Ltd,00940M
Gloucester City Council,23UE,Cemeteries,HC300,Operational Materials,5070,sun screen lotion,11/08/2016,422078,126,NET,Spaldings,48759Y
Gloucester City Council,23UE,Cemeteries,HC300,Other Minor Supplies Services,5590,additional charges,11/08/2016,422208,150,NET,Allstone Sand & Gravel Aggregates Ltd,00940M
Gloucester City Council,23UE,Cemeteries,HC300,Other Minor Supplies Services,5590,cambrian green,11/08/2016,422207,365,NET,Allstone Sand & Gravel Aggregates Ltd,00940M
Gloucester City Council,23UE,City Museum And Art Gallery,LM200,Operational Equipment <5000,5012,20000 CARDS,11/08/2016,421856,2020,NET,Pcd Plastic Cards Direct Ltd,15797Z
Gloucester City Council,23UE,City Museum And Art Gallery,LM200,Publications For Sale,5064,GOODS FOR RESALE,11/08/2016,421847,646.4,NET,Keycraft Ltd,16508C
Gloucester City Council,23UE,City Museum And Art Gallery,LM200,Publications For Sale,5064,wooly mammoth,11/08/2016,422300,41.68,NET,Keycraft Ltd,16508C
Gloucester City Council,23UE,City Museum Catering,LM202,Catering Provisions -Food,5110,milk,11/08/2016,422298,4.76,NET,Total Produce Gloucester,12645E
Gloucester City Council,23UE,Civica Admin Charges,RT105,Postages,5400,acct 0870585007 JUL16 post,11/08/2016,422311,1208.61,NET,Royal Mail S.Wales & South West,35830S
Gloucester City Council,23UE,Client Revs & Bens Contract,RT240,Bailiffs Fees,5368,vat only invoice,11/08/2016,422290,0,NET,Bristow & Sutor,05450M
Gloucester City Council,23UE,Client Revs & Bens Contract,RT240,Bailiffs Fees,5368,vat only invoice,11/08/2016,422291,0,NET,Bristow & Sutor,05450M
Gloucester City Council,23UE,REDACTED,REDACTED,REDACTED,REDACTED,REDACTED,11/08/2016,REDACTED,179.4,NET,REDACTED,REDACTED
Gloucester City Council,23UE,Contact Centre,RB300,Postages,5400,Post 18/06 - 02/07 2016,11/08/2016,422192,39.89,NET,Royal Mail S.Wales & South West,35830S
Gloucester City Council,23UE,Council Streetcare Team,HI101,Maint Of Grounds - General,3030,Barnwood Park- Gate post repair,11/08/2016,421028,238,NET,Greenfields Garden Services Ltd,48130G
Gloucester City Council,23UE,Crematorium,HC200,Operational Equipment <5000,5012,granite sanctum tablet,11/08/2016,422314,2690,NET,The Columbaria Company,55078T
Gloucester City Council,23UE,Crematorium,HC200,Uniforms,5201,summer hat,11/08/2016,422324,31.2,NET,Safpro Industrial Supply Co,39190W
Gloucester City Council,23UE,Development Management,PT200,Fees For Services Received,5350,temporary staff w/e 18/7/16,11/08/2016,422116,2489.21,NET,The Oyster Partnership Limited,14900T
Gloucester City Council,23UE,Docks Complex - Services,RB100,Lift Maintenance,3051,HKP Lift Inspections,11/08/2016,419228,373.75,NET,Pickerings Europe Ltd,58816U
Gloucester City Council,23UE,Guildhall Bar And Caf�,LA210,Catering Provisions -Food,5110,to correct credit note taken in error,11/08/2016,422386,4.48,NET,Bidvest Foodservice (3663),55585U
Gloucester City Council,23UE,Guildhall Events,LA200,Security Services Fees,5351,JULY 2016 SIA staff,11/08/2016,422239,480.75,NET,Nsgl Ltd (Security Acct),12539E
Gloucester City Council,23UE,Guildhall Lettings,LA400,Hire Of Equipment,5020,radio mic hire,11/08/2016,422306,96,NET,Uss Unique Sound Systems Ltd,59571S
Gloucester City Council,23UE,REDACTED,REDACTED,REDACTED,REDACTED,REDACTED,11/08/2016,REDACTED,370,NET,REDACTED,REDACTED
Gloucester City Council,23UE,REDACTED,REDACTED,REDACTED,REDACTED,REDACTED,11/08/2016,REDACTED,500,NET,REDACTED,REDACTED
Gloucester City Council,23UE,Internal Health & Safety,EH110,Other Minor Supplies Services,5590,alteration to reception desks,11/08/2016,422318,350,NET,The Furniture Recycling Project,05542F
Gloucester City Council,23UE,Investment Property,RB500,Lift Maintenance,3051,Blackfriars Lift Inspection,11/08/2016,419170,138.25,NET,Pickerings Europe Ltd,58816U
Gloucester City Council,23UE,Investment Property,RB500,Lift Maintenance,3051,City Museum Lift Inspections,11/08/2016,419171,153.25,NET,Pickerings Europe Ltd,58816U
Gloucester City Council,23UE,Investment Property,RB500,Lift Maintenance,3051,Eastgate Markets Lift Inspection,11/08/2016,419202,242.5,NET,Pickerings Europe Ltd,58816U
Gloucester City Council,23UE,Investment Property,RB500,Lift Maintenance,3051,Guildhall Lift Inspection,11/08/2016,419201,311.5,NET,Pickerings Europe Ltd,58816U
Gloucester City Council,23UE,Investment Property,RB500,Lift Maintenance,3051,Inspections,11/08/2016,419077,106.25,NET,Pickerings Europe Ltd,58816U
Gloucester City Council,23UE,Photocopying,RS130,Photocopying,5320,MFD printing JUN-AUG16,11/08/2016,421773,29177.89,NET,Danwood Group Limited,09555G
Gloucester City Council,23UE,Shopmobility,PE200,Other Minor Supplies Services,5590,membership 1/8-31/10,11/08/2016,422320,91.25,NET,Gloucester City Safe,14709J
Gloucester City Council,23UE,City Museum Catering,LM202,Catering Provisions -Food,5110,Machine Rental July 16,12/08/2016,422104,135,NET,La Spaziale Uk Ltd,11823P
Gloucester City Council,23UE,Head Of Regeneration & Eco Dev,GO102,Fees For Services Received,5350,Grant 16,12/08/2016,422105,50000,NET,Llanthony Seconda Priory Trust,07444M
Gloucester City Council,23UE,REDACTED,REDACTED,REDACTED,REDACTED,REDACTED,12/08/2016,REDACTED,450,NET,REDACTED,REDACTED
Gloucester City Council,23UE,Museum Phase 2 Hlf,GY001,Contract Payments,0020,professional fees re Museum roof survey,12/08/2016,420185,650,CAP,Gloucestershire County Council,18650D
Gloucester City Council,23UE,Street Cleaning (Client),HI300,Charges For Services,9300,Lionel Ritchie cleanup,12/08/2016,422213,352,NET,Enterprise (Aol) Ltd,06695G
Gloucester City Council,23UE,Cemeteries,HC300,Trade Refuse Tipping Fees,6297,skip exchange,15/08/2016,422209,320,NET,Allstone Sand & Gravel Aggregates Ltd,00940M
Gloucester City Council,23UE,City Museum And Art Gallery,LM200,Exhibits And Collections,5038,display fee,15/08/2016,422321,160,NET,The National Archives,16495K
Gloucester City Council,23UE,City Museum And Art Gallery,LM200,Tickets For Sale,5076,folk museum cards,15/08/2016,422303,1100,NET,Pcd Plastic Cards Direct Ltd,15797Z
Gloucester City Council,23UE,Client Revs & Bens Contract,RT240,Bailiffs Fees,5368,VAT due on statutory fees,15/08/2016,422114,0,NET,Bristow & Sutor,05450M
Gloucester City Council,23UE,Client Revs & Bens Contract,RT240,Bailiffs Fees,5368,vat only invoice,15/08/2016,422079,0,NET,Phoenix Commercial Collections Ltd,13435J
Gloucester City Council,23UE,Contact Centre,RB300,Postages,5400,Post 08/07 - 21/07 2016,15/08/2016,422196,1483.35,NET,Royal Mail S.Wales & South West,35830S
Gloucester City Council,23UE,Countryside Unit,LP201,Clothing,5200,"barrier tape, tap connector, boots",15/08/2016,422423,59.99,NET,Screwfix Direct,54672H
Gloucester City Council,23UE,Countryside Unit,LP201,General Repair/Maint Buildings,3000,"barrier tape, tap connector, boots",15/08/2016,422423,2.49,NET,Screwfix Direct,54672H
Gloucester City Council,23UE,Countryside Unit,LP201,Safety Equipment,5013,"barrier tape, tap connector, boots",15/08/2016,422423,19.98,NET,Screwfix Direct,54672H
Gloucester City Council,23UE,Crematorium,HC200,Cleaning Materials,3600,Various Items,15/08/2016,421211,356.7,NET,Acs Business Supplies Ltd,15791M
Gloucester City Council,23UE,Docks Complex - Services,RB100,Cleaning Materials,3600,Various Items,15/08/2016,421211,467.38,NET,Acs Business Supplies Ltd,15791M
Gloucester City Council,23UE,Folk Museum,LM210,Exhibits And Collections,5038,supply showcases,15/08/2016,422216,12856.3,NET,Click Netherfield Ltd,13428F
Gloucester City Council,23UE,Food Safety,HE100,Fees For Services Received,5350,Level 3 - Food safety,15/08/2016,422168,55,NET,Chartered Institute Enviromental Health,50829M
Gloucester City Council,23UE,Gloucester Guildhall,LA100,Cleaning Materials,3600,Various Items,15/08/2016,421211,472.02,NET,Acs Business Supplies Ltd,15791M
Gloucester City Council,23UE,Guildhall Events,LA200,Advertising And Publicity,5702,JUL16 adverts,15/08/2016,422162,180,NET,Local World Ltd,08556P
Gloucester City Council,23UE,Marchants,LT108,Materials For Sale,5080,Tickets April 2016,15/08/2016,422145,1874,NET,Marchants Coaches Ltd,48151Y
Gloucester City Council,23UE,Marchants,LT108,Materials For Sale,5080,Tickets June 2016,15/08/2016,422146,3137,NET,Marchants Coaches Ltd,48151Y
Gloucester City Council,23UE,Marchants,LT108,Materials For Sale,5080,Tickets May 2016,15/08/2016,422147,2804,NET,Marchants Coaches Ltd,48151Y
Gloucester City Council,23UE,Play Area Refurbishment,LY071,Contract Payments,0020,Various Items,15/08/2016,422219,30.66,CAP,Sutcliffe Play (Southwest) Ltd,02238S
Gloucester City Council,23UE,Printing,RP103,Printing,5300,print room sales,15/08/2016,422109,411.49,NET,Alpha Colour Printers Ltd,00945B
Gloucester City Council,23UE,Retail Market - Landlord,HM300,Cleaning / Domestic Equipment,5011,Various Items,15/08/2016,421211,226.03,NET,Acs Business Supplies Ltd,15791M
Gloucester City Council,23UE,Robinswoodhill Trading Account,LP203,General Repair/Maint Buildings,3000,paint & brushes,15/08/2016,422422,12.91,NET,Screwfix Direct,54672H
Gloucester City Council,23UE,The Arbor,HC501,Cleaning Materials,3600,Various Items,15/08/2016,421211,378.01,NET,Acs Business Supplies Ltd,15791M
Gloucester City Council,23UE,Vehicles,RS140,Fuel,4012,Fuel,15/08/2016,422195,273.31,NET,Allstar Business Solutions Ltd (Arval),06594A
Gloucester City Council,23UE,Grants To Voluntary Sector,FG100,Grants,7100C,Community Grant 2016/17,16/08/2016,422440,2640,NET,Rainbow Social Club,14863X
Gloucester City Council,23UE,Grants To Voluntary Sector,FG100,Grants,7100C,Community Grant 2016/17,16/08/2016,422441,3300,NET,Increase The Peace Project,08667D
Gloucester City Council,23UE,Grants To Voluntary Sector,FG100,Grants,7100C,Communty Grant 2016/17 2 of 2,16/08/2016,422442,1500,NET,Increase The Peace Project,08667D
Gloucester City Council,23UE,Retail Market - Landlord,HM300,Trade Refuse Collection,3630,Skip,16/08/2016,421324,300,NET,Allstone Sand & Gravel Aggregates Ltd,00940M
Gloucester City Council,23UE,Tourism Marketing,LT100,Buildings Insurance,3800,Insurance Premium 16/17,16/08/2016,422194,620.32,NET,P W Fido & Associates,01210A
Gloucester City Council,23UE,Council Streetcare Team,HI101,Fees For Services Received,5350,Glevum Court play are a inspections,17/08/2016,422123,100,NET,Greenfields Garden Services Ltd,48130G
Gloucester City Council,23UE,Disabled Facilities Grants,CY013,Disabled Facility Grants,0074,mdf5188 interim fee,17/08/2016,422455,1804,CAP,Tvm Cheltenham Ltd,15826Q
Gloucester City Council,23UE,Folk Museum,LM210,Publications For Sale,5064,goods for resale,17/08/2016,422189,706.57,NET,Farrahs Of Harrogate,14360F
Gloucester City Council,23UE,Gloucester Guildhall,LA100,General Repair/Maint Buildings,3000,screws,17/08/2016,422447,4.11,NET,Cpc,52980M
Gloucester City Council,23UE,Gloucester Guildhall,LA100,Maintenance Of Equipment,5030,Various Items,17/08/2016,422448,110.2,NET,Cpc,52980M
Gloucester City Council,23UE,Gloucester Guildhall,LA100,Maintenance Of Equipment,5030,Various Items,17/08/2016,422449,43.04,NET,Cpc,52980M
Gloucester City Council,23UE,Guildhall Bar And Caf�,LA210,Catering Provisions -Food,5110,MILK,17/08/2016,421888,4.76,NET,Total Produce Gloucester,12645E
Gloucester City Council,23UE,REDACTED,REDACTED,REDACTED,REDACTED,REDACTED,17/08/2016,REDACTED,588.52,NET,REDACTED,REDACTED
Gloucester City Council,23UE,REDACTED,REDACTED,REDACTED,REDACTED,REDACTED,17/08/2016,REDACTED,630,NET,REDACTED,REDACTED
Gloucester City Council,23UE,Investment Property,RB500,Fire Fighting Equipment,3008,Fire Risk Assessment,17/08/2016,422166,220,NET,Allcoopers Ltd,52921E
Gloucester City Council,23UE,Play Area Refurbishment,LY071,Contract Payments,0020,Alma Place- Refurbishment,17/08/2016,422142,498,CAP,Greenfields Garden Services Ltd,48130G
Gloucester City Council,23UE,Play Area Refurbishment,LY071,Contract Payments,0020,picnic table assembly,17/08/2016,422144,738,CAP,Centrewire Ltd,54156P
Gloucester City Council,23UE,Tic Theatre Ticket Sales,LT107,Materials For Sale,5080,Ticket Sales - City walking tours,17/08/2016,422454,80,NET,Gloucester Civic Trust - Tour Account,08084L
Gloucester City Council,23UE,Tic Theatre Ticket Sales,LT107,Materials For Sale,5080,Ticket Sales - Tower Talks,17/08/2016,422453,38,NET,Gloucester Civic Trust (St Michaels Tower),07484Z
Gloucester City Council,23UE,REDACTED,REDACTED,REDACTED,REDACTED,REDACTED,17/08/2016,REDACTED,199,NET,REDACTED,REDACTED
Gloucester City Council,23UE,Tic Theatre Ticket Sales,LT107,Other Minor Income,9900,Ticket Sales - City walking tours,17/08/2016,422454,-1,NET,Gloucester Civic Trust - Tour Account,08084L
Gloucester City Council,23UE,Tic Theatre Ticket Sales,LT107,Other Minor Income,9900,Ticket Sales - Tower Talks,17/08/2016,422453,-0.6,NET,Gloucester Civic Trust (St Michaels Tower),07484Z
Gloucester City Council,23UE,Tic Theatre Ticket Sales,LT107,Sale Of Goods And Services,9230,Ticket Sales - City walking tours,17/08/2016,422454,-3.33,NET,Gloucester Civic Trust - Tour Account,08084L
Gloucester City Council,23UE,Tic Theatre Ticket Sales,LT107,Sale Of Goods And Services,9230,Ticket Sales - Tower Talks,17/08/2016,422453,-2.63,NET,Gloucester Civic Trust (St Michaels Tower),07484Z
Gloucester City Council,23UE,REDACTED,REDACTED,REDACTED,REDACTED,REDACTED,17/08/2016,REDACTED,-16.58,NET,REDACTED,REDACTED
Gloucester City Council,23UE,Utilities,PT502,Electricity Supply,3110,Utilities Apr & May 2016,17/08/2016,422193,52369.45,NET,West Mercia Energy,11669Z
Gloucester City Council,23UE,Utilities,PT502,Gas Supply,3100,Utilities Apr & May 2016,17/08/2016,422193,33.42,NET,West Mercia Energy,11669Z
Gloucester City Council,23UE,Civica Contract Revs & Bens,RT250,Fees For Services Received,5350,SEP16 revs & benefits service,18/08/2016,422085,137797,NET,Civica Uk Ltd,10841X
Gloucester City Council,23UE,REDACTED,REDACTED,REDACTED,REDACTED,REDACTED,18/08/2016,REDACTED,129.24,NET,REDACTED,REDACTED
Gloucester City Council,23UE,REDACTED,REDACTED,REDACTED,REDACTED,REDACTED,18/08/2016,REDACTED,500,NET,REDACTED,REDACTED
Gloucester City Council,23UE,Members Support,RC300,Members Training,5535,Member Training,18/08/2016,419964,795,NET,Centre For Public Scrutiny,16485N
Gloucester City Council,23UE,Off Street Car Parks,PP110,Computer Software Maintenance,5427,cashless parking fees JUN16,18/08/2016,421743,815.33,NET,Chipside Ltd,06535T
Gloucester City Council,23UE,Business Transformation & Tech,RT700,Computer Software Maintenance,5427,Consultancy,19/08/2016,422647,2850,NET,Idox Group,07229U
Gloucester City Council,23UE,Cctv Revenue Budget,FP501,Security Equipment Serv/Repair,3038,Annual Contribution ANPR Cameras,19/08/2016,422159,5000,NET,"Police & Crime Commissioner, Gloucestershire",49521B
Gloucester City Council,23UE,Civica It Contract,RT270,Contracted Services,6970,IT managed service SEP16,19/08/2016,422094,48061.14,NET,Civica Uk Ltd,10841X
Gloucester City Council,23UE,Disabled Facilities Grants,CY013,Disabled Facility Grants,0074,disabled facilities grant payment,19/08/2016,422698,3485,CAP,Stroud Stairlifts,10315A
Gloucester City Council,23UE,REDACTED,REDACTED,REDACTED,REDACTED,REDACTED,19/08/2016,REDACTED,1250,NET,REDACTED,REDACTED
Gloucester City Council,23UE,Homelessness,CH120,Board And Lodging,5515,various tenants,19/08/2016,422693,5251.18,NET,James Legge Property (Ltd),07844R
Gloucester City Council,23UE,Homelessness,CH120,Board And Lodging,5515,various tenants,19/08/2016,422690,2321.73,NET,Kalmwood Ltd,08568G
Gloucester City Council,23UE,Homelessness,CH120,Board And Lodging,5515,various tenants,19/08/2016,422694,6847.06,NET,REDACTED,REDACTED
Gloucester City Council,23UE,Homelessness,CH120,Board And Lodging,5515,various tenants,19/08/2016,422691,2776.29,NET,Dorchester Guest House,12298D
Gloucester City Council,23UE,Homelessness,CH120,Board And Lodging,5515,various tenants,19/08/2016,422688,3898.02,NET,Carbrey Housing Ltd,11098G
Gloucester City Council,23UE,REDACTED,REDACTED,REDACTED,REDACTED,REDACTED,19/08/2016,REDACTED,9573.75,NET,REDACTED,REDACTED
Gloucester City Council,23UE,REDACTED,REDACTED,REDACTED,REDACTED,REDACTED,19/08/2016,REDACTED,786.88,NET,REDACTED,REDACTED
Gloucester City Council,23UE,REDACTED,REDACTED,REDACTED,REDACTED,REDACTED,19/08/2016,REDACTED,2563.97,NET,REDACTED,REDACTED
Gloucester City Council,23UE,Homelessness,CH120,Rent In Advance,5516,Housing  Rent In Advance & Deposit,19/08/2016,422695,368.2,NET,Chawda Holdings Ltd,08904N
Gloucester City Council,23UE,Homelessness Prevention,CH122,Fees For Services Received,5350,Housing  Rent In Advance & Deposit,19/08/2016,422695,400,NET,Chawda Holdings Ltd,08904N
Gloucester City Council,23UE,REDACTED,REDACTED,REDACTED,REDACTED,REDACTED,19/08/2016,REDACTED,355,NET,REDACTED,REDACTED
Gloucester City Council,23UE,REDACTED,REDACTED,REDACTED,REDACTED,REDACTED,19/08/2016,REDACTED,21,NET,REDACTED,REDACTED
Gloucester City Council,23UE,Pollution Control,HE300,Fees For Services Received,5350,vehicle disposal,19/08/2016,420709,100,NET,Harry Buckland,16135W
Gloucester City Council,23UE,Pollution Control,HE300,Fees For Services Received,5350,vehicle disposal,19/08/2016,421050,90,NET,Harry Buckland,16135W
Gloucester City Council,23UE,Pollution Control,HE300,Fees For Services Received,5350,vehicle disposal,19/08/2016,421051,80,NET,Harry Buckland,16135W
Gloucester City Council,23UE,Solace Project,FP843,Other Minor Supplies Services,5590,JUL16 ASB salary,19/08/2016,422122,3250,NET,Gloucester City Homes,05244T
Gloucester City Council,23UE,Aspire Admin Charges,LC105,Contracted Services,6970,management fees August 2016,23/08/2016,422575,38125.58,NET,Aspire Sports & Cultural Trust,08135V
Gloucester City Council,23UE,Asset Management,RS300,Basic Pay - Temporary Staff,2751,JUL16 professional services,23/08/2016,422522,7975,NET,Ardley Associates,09369F
Gloucester City Council,23UE,Business Transformation & Tech,RT700,Internet Service Provider Fees,5429,AUG-SEP BROADBAND CHARGES,23/08/2016,422294,39,NET,Virgin Media Payments Ltd,09376J
Gloucester City Council,23UE,Business Transformation & Tech,RT700,Internet Service Provider Fees,5429,call charges JUL-AUG16 - wifi,23/08/2016,421207,39,NET,Virgin Media Payments Ltd,09376J
Gloucester City Council,23UE,Cemeteries,HC300,Maint Of Grounds - General,3030,dead tree clearance,23/08/2016,422578,2300,NET,Jpu Services Ltd,11056K
Gloucester City Council,23UE,Cemeteries,HC300,Routine R And M - Vehicles,4011,strimmer repairs,23/08/2016,422527,54.05,NET,Garden Machinery Gloucester,55641K
Gloucester City Council,23UE,City Museum And Art Gallery,LM200,Advertising And Publicity,5702,Robot banner,23/08/2016,422572,1280,NET,Alpha Colour Printers Ltd,00945B
Gloucester City Council,23UE,City Museum And Art Gallery,LM200,Advertising And Publicity,5702,robot exhibition train tickets,23/08/2016,422573,81,NET,Alpha Colour Printers Ltd,00945B
Gloucester City Council,23UE,Client Revs & Bens Contract,RT240,Fees For Services Received,5350,CCH Feris work,23/08/2016,422067,19109,NET,Civica Uk Ltd,10841X
Gloucester City Council,23UE,Client Revs & Bens Contract,RT240,Fees For Services Received,5350,CCN P13 - new burdens,23/08/2016,422064,2833,NET,Civica Uk Ltd,10841X
Gloucester City Council,23UE,Client Revs & Bens Contract,RT240,Fees For Services Received,5350,CCN P15 Annual leaflets Ctax & Ndr,23/08/2016,422066,4343.02,NET,Civica Uk Ltd,10841X
Gloucester City Council,23UE,Contact Centre,RB300,Stationery,5302,A4 paper,23/08/2016,422556,469,NET,Premier Paper Group Ltd,09166Y
Gloucester City Council,23UE,Contact Centre,RB300,Stationery,5302,DL & C4 envelopes,23/08/2016,422571,424.02,NET,Encore Envelopes Ltd,13782H
Gloucester City Council,23UE,Contact Centre,RB300,Uniforms,5201,work trousers,23/08/2016,422590,46.9,NET,Meltemi Company Clothing Limited,54572N
Gloucester City Council,23UE,Council Streetcare Team,HI101,Operational Equipment <5000,5012,safety equipment,23/08/2016,422554,48.03,NET,Severnside Safety Supplies Ltd,57132O
Gloucester City Council,23UE,Countryside Unit,LP201,Water Supply,3400,acct 2140100635 23/12/15-2/6/16,23/08/2016,419782,13.99,NET,Severn Trent Water,01823H
Gloucester City Council,23UE,Crematorium,HC200,Equipment For Sale,5050,black granite bench,23/08/2016,422579,2140.5,NET,F J Cambridge & Co Ltd,48841N
Gloucester City Council,23UE,Development Management,PT200,Advertising And Publicity,5702,advert 4/8/16,23/08/2016,422536,175.3,NET,Local World Ltd,08556P
Gloucester City Council,23UE,Development Management,PT200,Fees For Services Received,5350,temporary staff w/c 25/7/16,23/08/2016,422591,1201.35,NET,The Oyster Partnership Limited,14900T
Gloucester City Council,23UE,Docks Complex - Services,RB100,Recycling,3631,docks recycling,23/08/2016,422581,111,NET,Printwaste Recycling,57114W
Gloucester City Council,23UE,Docks Complex - Services,RB100,Recycling,3631,Guildhalll recycling,23/08/2016,422584,63.6,NET,Printwaste Recycling,57114W
Gloucester City Council,23UE,Docks Complex - Services,RB100,Recycling,3631,Recycling,23/08/2016,421093,120.8,NET,Printwaste Recycling,57114W
Gloucester City Council,23UE,Financial Services,RT200,Fees For Services Received,5350,Aspire Bond works,23/08/2016,422776,400,NET,Gloucestershire County Council,18650D
Gloucester City Council,23UE,Guildhall Bar And Caf�,LA210,Catering Provisions -Food,5110,food,23/08/2016,422613,206.72,NET,Woody'S Fruit & Veg,11798L
Gloucester City Council,23UE,Guildhall Bar And Caf�,LA210,Catering Provisions -Food,5110,Food,23/08/2016,422810,98.5,NET,Woodward Foodservice,10714F
Gloucester City Council,23UE,Guildhall Bar And Caf�,LA210,Catering Provisions -Food,5110,ice cream for resale,23/08/2016,422564,54,NET,Winstones Ice Cream Ltd,56347D
Gloucester City Council,23UE,Guildhall Bar And Caf�,LA210,Catering Provisions -Food,5110,milk,23/08/2016,422614,4.76,NET,Total Produce Gloucester,12645E
Gloucester City Council,23UE,Guildhall Bar And Caf�,LA210,Catering Provisions -Food,5110,milk,23/08/2016,422615,4.76,NET,Total Produce Gloucester,12645E
Gloucester City Council,23UE,Guildhall Bar And Caf�,LA210,Catering Provisions -Food,5110,milk,23/08/2016,422616,4.76,NET,Total Produce Gloucester,12645E
Gloucester City Council,23UE,Guildhall Bar And Caf�,LA210,Catering Provisions -Food,5110,Milk,23/08/2016,422802,4.76,NET,Total Produce Gloucester,12645E
Gloucester City Council,23UE,Guildhall Bar And Caf�,LA210,Catering Provisions -Food,5110,Milk,23/08/2016,422803,4.76,NET,Total Produce Gloucester,12645E
Gloucester City Council,23UE,Guildhall Bar And Caf�,LA210,Catering Provisions -Food,5110,Milk,23/08/2016,422804,4.76,NET,Total Produce Gloucester,12645E
Gloucester City Council,23UE,Guildhall Bar And Caf�,LA210,Catering Provisions -Food,5110,Milk,23/08/2016,422806,4.76,NET,Total Produce Gloucester,12645E
Gloucester City Council,23UE,Guildhall Bar And Caf�,LA210,Catering Provisions -Food,5110,Milk,23/08/2016,422807,4.76,NET,Total Produce Gloucester,12645E
Gloucester City Council,23UE,Guildhall Bar And Caf�,LA210,Catering Provisions -Food,5110,Milk,23/08/2016,422808,4.76,NET,Total Produce Gloucester,12645E
Gloucester City Council,23UE,Guildhall Bar And Caf�,LA210,Catering Provisions -Liquor,5111,drinks,23/08/2016,422565,1012.94,NET,Cellar Supplies Cheltenham Ltd,01563L
Gloucester City Council,23UE,Guildhall Bar And Caf�,LA210,Catering Provisions -Liquor,5111,drinks,23/08/2016,422566,152,NET,Gloucester Brewery,13373F
Gloucester City Council,23UE,REDACTED,REDACTED,REDACTED,REDACTED,REDACTED,23/08/2016,REDACTED,116.67,NET,REDACTED,REDACTED
Gloucester City Council,23UE,REDACTED,REDACTED,REDACTED,REDACTED,REDACTED,23/08/2016,REDACTED,100,NET,REDACTED,REDACTED
Gloucester City Council,23UE,Guildhall Events,LA200,Fees For Services Received,5350,backline rental,23/08/2016,422469,700,NET,Eps Oxford Limited,17187R
Gloucester City Council,23UE,REDACTED,REDACTED,REDACTED,REDACTED,REDACTED,23/08/2016,REDACTED,400,NET,REDACTED,REDACTED
Gloucester City Council,23UE,REDACTED,REDACTED,REDACTED,REDACTED,REDACTED,23/08/2016,REDACTED,25,NET,REDACTED,REDACTED
Gloucester City Council,23UE,REDACTED,REDACTED,REDACTED,REDACTED,REDACTED,23/08/2016,REDACTED,100,NET,REDACTED,REDACTED
Gloucester City Council,23UE,Hackney Carriages,HL100,Other Minor Supplies Services,5590,transcription services,23/08/2016,422538,100,NET,Bromsgrove District Council,15037G
Gloucester City Council,23UE,Head Of Regeneration & Eco Dev,GO102,Advertising And Publicity,5702,high street campaign licence,23/08/2016,422529,7000,NET,Gfirst Lep Cic,17186T
Gloucester City Council,23UE,REDACTED,REDACTED,REDACTED,REDACTED,REDACTED,23/08/2016,REDACTED,400,NET,REDACTED,REDACTED
Gloucester City Council,23UE,Herbert Reception Upgrade,RY201,Contract Payments,0020,8 yard skip for Crem,23/08/2016,421598,230,CAP,Allstone Sand & Gravel Aggregates Ltd,00940M
Gloucester City Council,23UE,Homelessness,CH120,Board And Lodging,5515,travel expenses,23/08/2016,422563,6,NET,Connolly And Callaghan Ltd,07565Y
Gloucester City Council,23UE,Homelessness,CH120,Fees For Services Received,5350,medical report,23/08/2016,422472,20.5,NET,Dr P Hodges And Partners,16169C
Gloucester City Council,23UE,Homelessness,CH120,Fees For Services Received,5350,medical report,23/08/2016,422475,20.5,NET,Kingsholm Surgery,11948S
Gloucester City Council,23UE,Homelessness,CH120,Fees For Services Received,5350,telephone interpreting,23/08/2016,422476,63,NET,Prime Production Ltd,06262F
Gloucester City Council,23UE,Homelessness,CH120,Fees For Services Received,5350,telephone interpreting,23/08/2016,422477,9.45,NET,Prime Production Ltd,06262F
Gloucester City Council,23UE,Homelessness,CH120,Fees For Services Received,5350,telephone interpreting,23/08/2016,422478,23.1,NET,Prime Production Ltd,06262F
Gloucester City Council,23UE,Homelessness,CH120,Fees For Services Received,5350,telephone interpreting,23/08/2016,422492,12.6,NET,Prime Production Ltd,06262F
Gloucester City Council,23UE,Homelessness,CH120,Removal And Storage Fees,5513,storage fees,23/08/2016,422495,257.79,NET,Advanced Removals & Storage Ltd,57142R
Gloucester City Council,23UE,Homelessness,CH120,Removal And Storage Fees,5513,storage fees,23/08/2016,422496,320.63,NET,Advanced Removals & Storage Ltd,57142R
Gloucester City Council,23UE,Homelessness,CH120,Removal And Storage Fees,5513,storage fees,23/08/2016,422497,123.75,NET,Advanced Removals & Storage Ltd,57142R
Gloucester City Council,23UE,Homelessness,CH120,Removal And Storage Fees,5513,storage fees,23/08/2016,422498,135,NET,Advanced Removals & Storage Ltd,57142R
Gloucester City Council,23UE,Homelessness,CH120,Removal And Storage Fees,5513,storage fees,23/08/2016,422499,292.5,NET,Advanced Removals & Storage Ltd,57142R
Gloucester City Council,23UE,Homelessness,CH120,Removal And Storage Fees,5513,storage fees,23/08/2016,422500,25.71,NET,Advanced Removals & Storage Ltd,57142R
Gloucester City Council,23UE,Homelessness,CH120,Removal And Storage Fees,5513,storage fees,23/08/2016,422501,78.21,NET,Advanced Removals & Storage Ltd,57142R
Gloucester City Council,23UE,Homelessness,CH120,Removal And Storage Fees,5513,storage fees,23/08/2016,422502,312.86,NET,Advanced Removals & Storage Ltd,57142R
Gloucester City Council,23UE,Homelessness,CH120,Removal And Storage Fees,5513,storage fees,23/08/2016,422503,78.21,NET,Advanced Removals & Storage Ltd,57142R
Gloucester City Council,23UE,Homelessness,CH120,Removal And Storage Fees,5513,storage fees,23/08/2016,422504,78.21,NET,Advanced Removals & Storage Ltd,57142R
Gloucester City Council,23UE,Homelessness,CH120,Removal And Storage Fees,5513,storage fees,23/08/2016,422505,78.21,NET,Advanced Removals & Storage Ltd,57142R
Gloucester City Council,23UE,Homelessness,CH120,Removal And Storage Fees,5513,storage fees,23/08/2016,422506,39.11,NET,Advanced Removals & Storage Ltd,57142R
Gloucester City Council,23UE,Homelessness,CH120,Removal And Storage Fees,5513,storage fees,23/08/2016,422508,39.11,NET,Advanced Removals & Storage Ltd,57142R
Gloucester City Council,23UE,Homelessness,CH120,Removal And Storage Fees,5513,storage fees,23/08/2016,422509,39.11,NET,Advanced Removals & Storage Ltd,57142R
Gloucester City Council,23UE,Homelessness,CH120,Removal And Storage Fees,5513,storage fees,23/08/2016,422510,156.43,NET,Advanced Removals & Storage Ltd,57142R
Gloucester City Council,23UE,Homelessness,CH120,Removal And Storage Fees,5513,storage fees,23/08/2016,422511,117.32,NET,Advanced Removals & Storage Ltd,57142R
Gloucester City Council,23UE,Homelessness,CH120,Removal And Storage Fees,5513,storage fees,23/08/2016,422512,96.43,NET,Advanced Removals & Storage Ltd,57142R
Gloucester City Council,23UE,Homelessness,CH120,Removal And Storage Fees,5513,storage fees,23/08/2016,422513,87.43,NET,Advanced Removals & Storage Ltd,57142R
Gloucester City Council,23UE,Homelessness,CH120,Removal And Storage Fees,5513,storage fees,23/08/2016,422514,9,NET,Advanced Removals & Storage Ltd,57142R
Gloucester City Council,23UE,Homelessness,CH120,Removal And Storage Fees,5513,storage fees,23/08/2016,422515,533.75,NET,Advanced Removals & Storage Ltd,57142R
Gloucester City Council,23UE,Homelessness Prevention,CH122,Grants To Advice Centres,7100,homeless emergency bed JUL-SEP16,23/08/2016,422567,2684.5,NET,P3 (People Potential Possibilities),13809N
Gloucester City Council,23UE,Investment Property,RB500,Consultants Fees,5349,Park cafe marketing,23/08/2016,422534,980,NET,Alder King,02367D
Gloucester City Council,23UE,Members Support,RC300,Members Training,5535,TCPA summer conference,23/08/2016,422530,350,NET,Town And Country Planning Association,17182B
Gloucester City Council,23UE,Planning Policy & Heritage,PT300,Fees For Services Received,5350,local plan specialist support,23/08/2016,422722,4635,NET,Enfusion Ltd,17180F
Gloucester City Council,23UE,Rehousing,CH111,Fees For Services Received,5350,medical report,23/08/2016,422473,20.5,NET,Saintbridge Surgery,58374F
Gloucester City Council,23UE,Rehousing,CH111,Fees For Services Received,5350,medical report,23/08/2016,422474,20.5,NET,Barnwood Medical Practice,11672L
Gloucester City Council,23UE,Rehousing,CH111,Fees For Services Received,5350,medical report,23/08/2016,422516,20.5,NET,Gloucester City Health Centre,02093U
Gloucester City Council,23UE,Retail Market - Landlord,HM300,Sewerage And Environ Charges,3402,JUN16 drain check,23/08/2016,422493,180,NET,The Drain Man Ltd,16460F
Gloucester City Council,23UE,Retail Market - Landlord,HM300,Window Cleaning,3610,JUL16 markets window cleaning,23/08/2016,422631,140,NET,Cornwall Cleaning Services,14050A
Gloucester City Council,23UE,Retail Market - Landlord,HM300,Window Cleaning,3610,Monthly Window Cleaning,23/08/2016,422794,140,NET,Cornwall Cleaning Services,14050A
Gloucester City Council,23UE,The Arbor,HC501,Catering Provisions -Food,5110,food,23/08/2016,422602,17.26,NET,Total Produce Gloucester,12645E
Gloucester City Council,23UE,The Arbor,HC501,Catering Provisions -Food,5110,food,23/08/2016,422603,34.02,NET,Total Produce Gloucester,12645E
Gloucester City Council,23UE,The Arbor,HC501,Catering Provisions -Food,5110,food,23/08/2016,422604,29.67,NET,Total Produce Gloucester,12645E
Gloucester City Council,23UE,The Arbor,HC501,Catering Provisions -Food,5110,food,23/08/2016,422606,22.23,NET,Total Produce Gloucester,12645E
Gloucester City Council,23UE,The Arbor,HC501,Catering Provisions -Food,5110,food,23/08/2016,422607,54.55,NET,Total Produce Gloucester,12645E
Gloucester City Council,23UE,The Arbor,HC501,Catering Provisions -Food,5110,food,23/08/2016,422608,43.94,NET,Total Produce Gloucester,12645E
Gloucester City Council,23UE,The Arbor,HC501,Catering Provisions -Food,5110,food,23/08/2016,422609,88.27,NET,Total Produce Gloucester,12645E
Gloucester City Council,23UE,The Arbor,HC501,Catering Provisions -Food,5110,food,23/08/2016,422610,227.47,NET,Bidvest Foodservice (3663),55585U
Gloucester City Council,23UE,The Arbor,HC501,Catering Provisions -Food,5110,food,23/08/2016,422611,159.63,NET,Bidvest Foodservice (3663),55585U
Gloucester City Council,23UE,The Arbor,HC501,Catering Provisions -Food,5110,food,23/08/2016,422612,195,NET,Bidvest Foodservice (3663),55585U
Gloucester City Council,23UE,The Arbor,HC501,Catering Provisions -Liquor,5111,drinks,23/08/2016,422524,295.09,NET,Cellar Supplies Cheltenham Ltd,01563L
Gloucester City Council,23UE,Vehicles,RS140,Routine R And M - Vehicles,4011,vehicle service,23/08/2016,422494,49.94,NET,123 Car & Commercial,07651E
Gloucester City Council,23UE,Allotments,HI104,Fees For Services Received,5350,Paint,24/08/2016,422759,52,NET,Safpro Industrial Supply Co,39190W
Gloucester City Council,23UE,Asset Management,RS300,Subscriptions,5600,Asset Management planning network,24/08/2016,422464,925,NET,Cipfa Business Limited,09260F
Gloucester City Council,23UE,Blackfriars,LA609,Hire Of Equipment,5020,Poser Table,24/08/2016,422781,58,NET,Valley Furniture Hire Ltd,08324P
Gloucester City Council,23UE,REDACTED,REDACTED,REDACTED,REDACTED,REDACTED,24/08/2016,REDACTED,175,NET,REDACTED,REDACTED
Gloucester City Council,23UE,Business Transformation & Tech,RT700,Computer Software <5000,5425,Upgrade,24/08/2016,422765,3800,NET,Idox Group,07229U
Gloucester City Council,23UE,Cemeteries,HC300,Routine R And M - Vehicles,4011,chainsaw repairs,24/08/2016,422662,45,NET,Garden Machinery Gloucester,55641K
Gloucester City Council,23UE,City Museum And Art Gallery,LM200,Advertising And Publicity,5702,A1 snap frames,24/08/2016,422668,28.94,NET,Displaysense Ltd,05982W
Gloucester City Council,23UE,Civica It Contract,RT270,Contracted Services,6970,Pension Excess Charges,24/08/2016,422782,1129.04,NET,Civica Uk Ltd,10841X
Gloucester City Council,23UE,Cleansing Services Admin,HI100,Fees For Services Received,5350,Paint,24/08/2016,422759,9.33,NET,Safpro Industrial Supply Co,39190W
Gloucester City Council,23UE,Client Revs & Bens Contract,RT240,Bailiffs Fees,5368,VAT on statutory fees,24/08/2016,422767,0,NET,Bristow & Sutor,05450M
Gloucester City Council,23UE,Client Revs & Bens Contract,RT240,Bailiffs Fees,5368,VAT on statutory fees,24/08/2016,422768,0,NET,Bristow & Sutor,05450M
Gloucester City Council,23UE,Client Revs & Bens Contract,RT240,Fees For Services Received,5350,Arrest & Detention warrants,24/08/2016,422763,60,NET,Assevarate Ltd,11749A
Gloucester City Council,23UE,Client Revs & Bens Contract,RT240,Fees For Services Received,5350,Arrest & Detention warrants,24/08/2016,422764,60,NET,Assevarate Ltd,11749A
Gloucester City Council,23UE,Client Revs & Bens Contract,RT240,Fees For Services Received,5350,Arrest & Detention warrants,24/08/2016,422762,60,NET,Assevarate Ltd,11749A
Gloucester City Council,23UE,Contact Centre,RB300,Postages,5400,Post 22/07 - 11/08 2016,24/08/2016,422793,1301.09,NET,Royal Mail S.Wales & South West,35830S
Gloucester City Council,23UE,Contact Centre,RB300,Printing,5300,signing in books,24/08/2016,422661,58,NET,Alpha Colour Printers Ltd,00945B
Gloucester City Council,23UE,Contact Centre,RB300,Stationery,5302,Stationary,24/08/2016,422783,51.87,NET,Lyreco Uk Ltd,11746G
Gloucester City Council,23UE,Contact Centre,RB300,Stationery,5302,stationery,24/08/2016,422659,23.62,NET,Lyreco Uk Ltd,11746G
Gloucester City Council,23UE,Contact Centre,RB300,Uniforms,5201,Blouses,24/08/2016,422755,62.1,NET,Meltemi Company Clothing Limited,54572N
Gloucester City Council,23UE,Council Streetcare Team,HI101,Maint Of Grounds - General,3030,Loadbinder Chain,24/08/2016,422785,28,NET,Certex Uk Ltd,52192Y
Gloucester City Council,23UE,Council Streetcare Team,HI101,Operational Materials,5070,Weevils,24/08/2016,422790,108,NET,Cabi Bioscience,17185V
Gloucester City Council,23UE,Crematorium,HC200,Memorial Plaques,5053,granite plaque,24/08/2016,422576,215,NET,Steel & Stone (York),57204U
Gloucester City Council,23UE,Crematorium,HC200,Memorial Plaques,5053,granite plaque,24/08/2016,422577,230,NET,Steel & Stone (York),57204U
Gloucester City Council,23UE,Development Management,PT200,Advertising And Publicity,5702,adverts 11/8/16,24/08/2016,422675,204.51,NET,Local World Ltd,08556P
Gloucester City Council,23UE,Development Management,PT200,Fees For Services Received,5350,temporary staff w/c 1/8/16,24/08/2016,422652,2261.8,NET,The Oyster Partnership Limited,14900T
Gloucester City Council,23UE,Docks Complex - Services,RB100,Hire Of Equipment,5020,Lease Rental,24/08/2016,420608,162.57,NET,Siemens Financial Services Ltd,08349H
Gloucester City Council,23UE,Docks Complex - Services,RB100,Trade Refuse Collection,3630,trade waste,24/08/2016,422242,13408.82,NET,Enterprise (Aol) Ltd,06695G
Gloucester City Council,23UE,Docks Complex - Services,RB100,Trade Refuse Collection,3630,trade waste,24/08/2016,422243,458,NET,Enterprise (Aol) Ltd,06695G
Gloucester City Council,23UE,Financial Services,RT200,Fees For Services Received,5350,Fees VAT Only,24/08/2016,422761,0,NET,Weightmans Llp,15485E
Gloucester City Council,23UE,Financial Services,RT200,Fees For Services Received,5350,Risk Management Consultancy Services,24/08/2016,422778,9000,NET,Zurich Management Services Limited,20229U
Gloucester City Council,23UE,Financial Services,RT200,Vocational Training,2970,Exam fees 01/09/2016,24/08/2016,422866,77,NET,Pitman Training Worcester,16384W
Gloucester City Council,23UE,Folk Museum,LM210,Operational Equipment <5000,5012,name badges,24/08/2016,422676,49.99,NET,Badgemaster Ltd,58525J
Gloucester City Council,23UE,Folk Museum,LM210,Uniforms,5201,name badges,24/08/2016,422676,115.05,NET,Badgemaster Ltd,58525J
Gloucester City Council,23UE,Food Safety,HE100,Fees For Services Received,5350,catering guide,24/08/2016,422548,20.1,NET,Bristish Hospitality Association,17178S
Gloucester City Council,23UE,General Drainage Works,PY241,Contract Payments,0020,professional services re Sudbrook,24/08/2016,422643,1635,CAP,Jba Consulting,15841Y
Gloucester City Council,23UE,General Works Fund,RY203,Contract Payments,0020,Crem works Various Items,24/08/2016,422766,4152.44,CAP,Central Roofing & Building Services Ltd,59480W
Gloucester City Council,23UE,Guildhall Bar And Caf�,LA210,Catering Provisions -Food,5110,food,24/08/2016,422240,29.1,NET,Janes Pantry,24500W
Gloucester City Council,23UE,Guildhall Bar And Caf�,LA210,Catering Provisions -Food,5110,food,24/08/2016,422633,122.57,NET,Woodward Foodservice,10714F
Gloucester City Council,23UE,Guildhall Bar And Caf�,LA210,Catering Provisions -Food,5110,milk,24/08/2016,422617,4.76,NET,Total Produce Gloucester,12645E
Gloucester City Council,23UE,Guildhall Bar And Caf�,LA210,Catering Provisions -Liquor,5111,Drinks,24/08/2016,422784,954.41,NET,Cellar Supplies Cheltenham Ltd,01563L
Gloucester City Council,23UE,Guildhall Events,LA200,Fees For Services Received,5350,Audio Engineer,24/08/2016,422752,250,NET,Leap Audio,15059W
Gloucester City Council,23UE,REDACTED,REDACTED,REDACTED,REDACTED,REDACTED,24/08/2016,REDACTED,440,NET,REDACTED,REDACTED
Gloucester City Council,23UE,REDACTED,REDACTED,REDACTED,REDACTED,REDACTED,24/08/2016,REDACTED,300,NET,REDACTED,REDACTED
Gloucester City Council,23UE,REDACTED,REDACTED,REDACTED,REDACTED,REDACTED,24/08/2016,REDACTED,560,NET,REDACTED,REDACTED
Gloucester City Council,23UE,REDACTED,REDACTED,REDACTED,REDACTED,REDACTED,24/08/2016,REDACTED,330,NET,REDACTED,REDACTED
Gloucester City Council,23UE,REDACTED,REDACTED,REDACTED,REDACTED,REDACTED,24/08/2016,REDACTED,79,NET,REDACTED,REDACTED
Gloucester City Council,23UE,Herbert Reception Upgrade,RY201,Capital General Repairs & Main,0013,Crem works Various Items,24/08/2016,422766,7881.56,CAP,Central Roofing & Building Services Ltd,59480W
Gloucester City Council,23UE,Herbert Reception Upgrade,RY201,Contract Payments,0020,Crem works Various Items,24/08/2016,422766,1124.4,CAP,Central Roofing & Building Services Ltd,59480W
Gloucester City Council,23UE,Homelessness,CH120,Board And Lodging,5515,emergency housing accommodation,24/08/2016,422775,780,NET,Hanover Housing Association,17191A
Gloucester City Council,23UE,REDACTED,REDACTED,REDACTED,REDACTED,REDACTED,24/08/2016,REDACTED,748.56,NET,REDACTED,REDACTED
Gloucester City Council,23UE,Investment Property,RB500,General Repair/Maint Buildings,3000,bench refurbishment,24/08/2016,422076,200,NET,Furniture Recycling Project,51707U
Gloucester City Council,23UE,Investment Property,RB500,General Repair/Maint Buildings,3000,Remove Waste & Cleansing,24/08/2016,422805,125,NET,Gooch Group Limited,05169F
Gloucester City Council,23UE,Investment Property,RB500,Repair/Maint Of Fixed Plant,3006,supply new filters,24/08/2016,422191,3163,NET,Total Leisure Engineering Ltd,15320J
Gloucester City Council,23UE,Kings Quarter,RY146,Contract Payments,0020,kings quarter master plan,24/08/2016,422316,15000,CAP,Roberts Limbrick Ltd,64586RV
Gloucester City Council,23UE,REDACTED,REDACTED,REDACTED,REDACTED,REDACTED,24/08/2016,REDACTED,200,NET,REDACTED,REDACTED
Gloucester City Council,23UE,National Express,LT105,Materials For Sale,5080,July 2016,24/08/2016,422636,11671.8,NET,National Express Ltd,31455K
Gloucester City Council,23UE,National Express,LT105,Sale Of Goods And Services,9230,July 2016,24/08/2016,422636,-1030.38,NET,National Express Ltd,31455K
Gloucester City Council,23UE,Pollution Control,HE300,Fees For Services Received,5350,NO2 tube,24/08/2016,422673,20.1,NET,Gradko International Ltd,11063B
Gloucester City Council,23UE,Pollution Control,HE300,Fees For Services Received,5350,NO2 tubes,24/08/2016,422672,104.25,NET,Gradko International Ltd,11063B
Gloucester City Council,23UE,Pollution Control,HE300,Fees For Services Received,5350,vehicle disposal,24/08/2016,422541,80,NET,Harry Buckland,16135W
Gloucester City Council,23UE,Pollution Control,HE300,Fees For Services Received,5350,vehicle disposal,24/08/2016,422542,140,NET,Harry Buckland,16135W
Gloucester City Council,23UE,Pollution Control,HE300,Fees For Services Received,5350,vehicle disposal,24/08/2016,422543,80,NET,Harry Buckland,16135W
Gloucester City Council,23UE,Pollution Control,HE300,Fees For Services Received,5350,vehicle disposal,24/08/2016,422544,80,NET,Harry Buckland,16135W
Gloucester City Council,23UE,Pollution Control,HE300,Fees For Services Received,5350,vehicle disposal,24/08/2016,422545,150,NET,Harry Buckland,16135W
Gloucester City Council,23UE,Pollution Control,HE300,Fees For Services Received,5350,vehicle disposal,24/08/2016,422546,80,NET,Harry Buckland,16135W
Gloucester City Council,23UE,Pollution Control,HE300,Fees For Services Received,5350,vehicle disposal,24/08/2016,422589,80,NET,Harry Buckland,16135W
Gloucester City Council,23UE,Registration Of Electors,RS400,Postages,5400,postage acct 0870585031,24/08/2016,422625,347.07,NET,Royal Mail S.Wales & South West,35830S
Gloucester City Council,23UE,Rehousing,CH111,Fees For Services Received,5350,medical report,24/08/2016,422658,20.5,NET,Hadwen Medical Practice,59727U
Gloucester City Council,23UE,Statutory Testing,RS310,Fees For Services Received,5350,North Warehouse fire alarm works,24/08/2016,417305,165,NET,Allcoopers Ltd,52921E
Gloucester City Council,23UE,Statutory Testing,RS310,Fees For Services Received,5350,Shopmobility emergency lights,24/08/2016,417304,195.23,NET,Allcoopers Ltd,52921E
Gloucester City Council,23UE,Townscape Heritage Initiative,LY145,Contract Payments,0020,Preparing Valuation,24/08/2016,422667,1000,CAP,Guy Welfare Associates Ltd,16470C
Gloucester City Council,23UE,Townscape Heritage Initiative,LY145,Contract Payments,0020,THI GRANT 5TH & FINAL INSTALLMENT,24/08/2016,422858,5501,CAP,Chobe Holdings,16418E
Gloucester City Council,23UE,REDACTED,REDACTED,REDACTED,REDACTED,REDACTED,24/08/2016,REDACTED,5000,CAP,REDACTED,REDACTED
Gloucester City Council,23UE,Vehicles,RS140,Fuel,4012,Fuel,24/08/2016,422801,230.47,NET,Allstar Business Solutions Ltd (Arval),06594A
Gloucester City Council,23UE,Cemeteries,HC300,Basic Pay - Temporary Staff,2751,temporary staff w/e 7/8/16,25/08/2016,422467,439.88,NET,Premiere Employment Group Ltd,55468Z
Gloucester City Council,23UE,Cemeteries,HC300,Basic Pay - Temporary Staff,2751,temporary staff w/e 7/8/16,25/08/2016,422466,439.88,NET,Premiere Employment Group Ltd,55468Z
Gloucester City Council,23UE,Cemeteries,HC300,Clothing,5200,thermal grip gloves,25/08/2016,422637,27.5,NET,Safpro Industrial Supply Co,39190W
Gloucester City Council,23UE,City Museum And Art Gallery,LM200,Advertising And Publicity,5702,Glass Cabinets,25/08/2016,422669,336.38,NET,Displaysense Ltd,05982W
Gloucester City Council,23UE,Civica Contract Revs & Bens,RT250,Contracted Services,6970,Pension Excess Charges,25/08/2016,422677,10816.95,NET,Civica Uk Ltd,10841X
Gloucester City Council,23UE,Contact Centre,RB300,Stationery,5302,diaries & planners,25/08/2016,422660,40.55,NET,Lyreco Uk Ltd,11746G
Gloucester City Council,23UE,Development Management,PT200,Fees For Services Received,5350,temporary staff w/c 1/8/16,25/08/2016,422651,1293.74,NET,The Oyster Partnership Limited,14900T
Gloucester City Council,23UE,General Drainage Works,PY241,Contract Payments,0020,topographical survey Sudbrook/Cheney Cl,25/08/2016,422683,845,CAP,Monument Geomatics,11065F
Gloucester City Council,23UE,REDACTED,REDACTED,REDACTED,REDACTED,REDACTED,25/08/2016,REDACTED,200,NET,REDACTED,REDACTED
Gloucester City Council,23UE,Homelessness,CH120,Fees For Services Received,5350,Medical Reports,25/08/2016,422657,175,NET,Now Medical,03468L
Gloucester City Council,23UE,Off Street Car Parks,PP110,Contracted Services,6970,Parking Income 16/17,25/08/2016,422088,299.8,NET,Patrol,09431C
Gloucester City Council,23UE,Pollution Control,HE300,Fees For Services Received,5350,Circular Clip,25/08/2016,422679,89,NET,Gradko International Ltd,11063B
Gloucester City Council,23UE,Pollution Control,HE300,Fees For Services Received,5350,Washer for circular clip,25/08/2016,422674,12.6,NET,Gradko International Ltd,11063B
Gloucester City Council,23UE,Registration Of Electors,RS400,Fees For Services Received,5350,election trainer,25/08/2016,422598,4925,NET,Halarose Ltd,16447X
Gloucester City Council,23UE,Registration Of Electors,RS400,Postages,5400,Response Plus Service,25/08/2016,422619,5383.25,NET,Royal Mail S.Wales & South West,35830S
Gloucester City Council,23UE,Retail Market - Landlord,HM300,Operational Equipment <5000,5012,Tubes,25/08/2016,422670,90,NET,REDACTED,REDACTED
Gloucester City Council,23UE,Retail Market - Landlord,HM300,Trade Refuse Collection,3630,Services August 2016,25/08/2016,422750,280.56,NET,System Rental Uk Ltd,03239E
Gloucester City Council,23UE,Retail Market - Landlord,HM300,Trade Refuse Collection,3630,Services July 2016,25/08/2016,422751,280.56,NET,System Rental Uk Ltd,03239E
Gloucester City Council,23UE,The Arbor,HC501,Catering Provisions -Food,5110,food,25/08/2016,422634,244.73,NET,Bidvest Foodservice (3663),55585U
Gloucester City Council,23UE,The Arbor,HC501,Catering Provisions -Food,5110,food,25/08/2016,422635,394.69,NET,Bidvest Foodservice (3663),55585U
Gloucester City Council,23UE,The Arbor,HC501,Catering Provisions -Food,5110,food,25/08/2016,422746,185.95,NET,Bidvest Foodservice (3663),55585U
Gloucester City Council,23UE,The Arbor,HC501,Catering Provisions -Food,5110,Food,25/08/2016,422605,35.21,NET,Total Produce Gloucester,12645E
Gloucester City Council,23UE,The Arbor,HC501,Catering Provisions -Food,5110,Food,25/08/2016,422749,196.99,NET,Bidvest Foodservice (3663),55585U
Gloucester City Council,23UE,Tourism Marketing,LT100,Other Minor Supplies Services,5590,Services,25/08/2016,422867,38.76,NET,Ocs Group Uk Limited T/A Cannon,06506A
Gloucester City Council,23UE,Blackfriars,LA609,Contract Cleaning,3620,Cover Cleaning June 16,26/08/2016,420767,585,NET,Into Cleaning,14609P
Gloucester City Council,23UE,Contact Centre,RB300,Stationery,5302,Stationary,26/08/2016,422569,2.18,NET,Lyreco Uk Ltd,11746G
Gloucester City Council,23UE,Contaminated Land,HE301,Fees For Services Received,5350,Contaminated Land Work,26/08/2016,422663,1598.24,NET,Bromsgrove District Council,15037G
Gloucester City Council,23UE,Council Streetcare Team,HI101,Printing,5300,Dogs on leads poster,26/08/2016,422531,47.5,NET,Severn Signs Ltd,49841D
Gloucester City Council,23UE,Development Management,PT200,Fees For Services Received,5350,Provision of BSL interpreter,26/08/2016,422550,123.7,NET,Gloucestershire Deaf Association,55868C
Gloucester City Council,23UE,Development Management,PT200,Fees For Services Received,5350,Provision of BSL Interpreter,26/08/2016,422551,135.4,NET,Gloucestershire Deaf Association,55868C
Gloucester City Council,23UE,Gloucester Guildhall,LA100,General Repair/Maint Buildings,3000,supply lamps & shackles,26/08/2016,422582,1499.4,NET,Peak Hire Limited,07936J
Gloucester City Council,23UE,REDACTED,REDACTED,REDACTED,REDACTED,REDACTED,26/08/2016,REDACTED,150,NET,REDACTED,REDACTED
Gloucester City Council,23UE,REDACTED,REDACTED,REDACTED,REDACTED,REDACTED,26/08/2016,REDACTED,250,NET,REDACTED,REDACTED
Gloucester City Council,23UE,REDACTED,REDACTED,REDACTED,REDACTED,REDACTED,26/08/2016,REDACTED,240,NET,REDACTED,REDACTED
Gloucester City Council,23UE,Homelessness,CH120,Removal And Storage Fees,5513,Storage July 16,26/08/2016,422507,39.11,NET,Advanced Removals & Storage Ltd,57142R
Gloucester City Council,23UE,Pollution Control,HE300,Fees For Services Received,5350,JUN16 pollution control work,26/08/2016,422664,559,NET,Bromsgrove District Council,15037G
Gloucester City Council,23UE,Retail Market - Landlord,HM300,Cleaning / Domestic Equipment,5011,Services September 2016,26/08/2016,422777,20.52,NET,Initial Washroom Solutions,06143R
Gloucester City Council,23UE,The Arbor,HC501,Catering Provisions -Food,5110,food,26/08/2016,422727,118.36,NET,Janes Pantry,24500W
Gloucester City Council,23UE,The Arbor,HC501,Catering Provisions -Food,5110,food,26/08/2016,422728,133.33,NET,Janes Pantry,24500W
Gloucester City Council,23UE,The Arbor,HC501,Catering Provisions -Food,5110,food,26/08/2016,422733,91.3,NET,Janes Pantry,24500W
Gloucester City Council,23UE,Aspire Admin Charges,LC105,Security Services Fees,5351,Services September 2016,30/08/2016,422736,184.94,NET,G4s Cash Solutions (Uk) Ltd,04290V
Gloucester City Council,23UE,Asset Management,RS300,Fees For Services Received,5350,Monthly Call outs,30/08/2016,422558,68,NET,Allcoopers Ltd,52921E
Gloucester City Council,23UE,Cems/Crems Admin,HC100,Security Services Fees,5351,Services September 2016,30/08/2016,422736,105.42,NET,G4s Cash Solutions (Uk) Ltd,04290V
Gloucester City Council,23UE,City Museum And Art Gallery,LM200,Security Services Fees,5351,Services September 2016,30/08/2016,422736,92.47,NET,G4s Cash Solutions (Uk) Ltd,04290V
Gloucester City Council,23UE,City Museum Catering,LM202,Care Of Collections,5039,External Funding,30/08/2016,422653,167,NET,Stroud District Council,42500D
Gloucester City Council,23UE,Coll Fund Revenue Account,ZC100,Nndr Central Share,7474,BRR POOLING PAYMENT DUE 19/09/16,30/08/2016,422974,424982,NET,Gloucestershire County Council,18650D
Gloucester City Council,23UE,Coll Fund Revenue Account,ZC100,Nndr Tariff,7473,BRR POOLING PAYMENT DUE 19/09/16,30/08/2016,422975,1331309,NET,Stroud District Council,74737T
Gloucester City Council,23UE,Contact Centre,RB300,Other Minor Supplies Services,5590,Interpreting 28/07/2016,30/08/2016,422592,23.1,NET,Prime Production Ltd,06262F
Gloucester City Council,23UE,Contact Centre,RB300,Stationery,5302,Stationary,30/08/2016,422568,93.93,NET,Lyreco Uk Ltd,11746G
Gloucester City Council,23UE,Docks Complex - Services,RB100,Security Services Fees,5351,Services September 2016,30/08/2016,422736,276.2,NET,G4s Cash Solutions (Uk) Ltd,04290V
Gloucester City Council,23UE,Employers Pension Contribs,ZR355,Pension Contribs Incl Backf,2901,"May, June, July 2016",30/08/2016,422737,26178.61,NET,Gloucestershire County Council,10614L
Gloucester City Council,23UE,Employers Pension Contribs,ZR355,Pension Contribs Incl Backf,2901,PENSION DEFICIT FOR AUGUST 2016,30/08/2016,422973,238916.67,NET,Gloucestershire County Council,10614L
Gloucester City Council,23UE,Flooding And Drainage,HE306,Other Minor Supplies Services,5590,Horsbere Meadow,30/08/2016,422549,45,NET,Greenfields Garden Services Ltd,48130G
Gloucester City Council,23UE,Folk Museum,LM210,Security Services Fees,5351,Services September 2016,30/08/2016,422736,92.47,NET,G4s Cash Solutions (Uk) Ltd,04290V
Gloucester City Council,23UE,Gloucester Guildhall,LA100,Fees For Services Received,5350,Uniforms,30/08/2016,422519,259.7,NET,Workware Express Ltd,17189L
Gloucester City Council,23UE,Gloucester Guildhall,LA100,Radio Equipment,5416,motorola earphones,30/08/2016,422638,196.87,NET,Radiotronics Limited,17054M
Gloucester City Council,23UE,Gloucester Guildhall,LA100,Security Services Fees,5351,Services September 2016,30/08/2016,422736,92.47,NET,G4s Cash Solutions (Uk) Ltd,04290V
Gloucester City Council,23UE,REDACTED,REDACTED,REDACTED,REDACTED,REDACTED,30/08/2016,REDACTED,50,NET,REDACTED,REDACTED
Gloucester City Council,23UE,REDACTED,REDACTED,REDACTED,REDACTED,REDACTED,30/08/2016,REDACTED,180,NET,REDACTED,REDACTED
Gloucester City Council,23UE,Hackney Carriages,HL100,Fees For Services Received,5350,dvla checks,30/08/2016,421034,145,NET,Intelligent Data Systems (Uk) Ltd,11067G
Gloucester City Council,23UE,Hackney Carriages,HL100,Fees For Services Received,5350,DVLA checks,30/08/2016,422553,65.25,NET,Intelligent Data Systems (Uk) Ltd,11067G
Gloucester City Council,23UE,Homelessness,CH120,Rent In Advance,5516,ria & deposit,30/08/2016,422952,489.44,NET,Kjt Residential,17536M
Gloucester City Council,23UE,REDACTED,REDACTED,REDACTED,REDACTED,REDACTED,30/08/2016,REDACTED,260,NET,REDACTED,REDACTED
Gloucester City Council,23UE,Homelessness Prevention,CH122,Fees For Services Received,5350,ria & deposit,30/08/2016,422952,410,NET,Kjt Residential,17536M
Gloucester City Council,23UE,REDACTED,REDACTED,REDACTED,REDACTED,REDACTED,30/08/2016,REDACTED,300,NET,REDACTED,REDACTED
Gloucester City Council,23UE,Investment Property,RB500,Asbestos Management Plan,3003,Asbestos Sample,30/08/2016,422742,145,NET,Gloucester Asbestos Ltd,00496K
Gloucester City Council,23UE,Nms Contract,HI102,Contracted Services,6970,August 2016 Service Fee,30/08/2016,422641,478446.3,NET,Enterprise (Aol) Ltd,06695G
Gloucester City Council,23UE,Nms Contract,HI102,Contracted Services,6970,Commodity Top Up July 16,30/08/2016,422640,25856,NET,Enterprise (Aol) Ltd,06695G
Gloucester City Council,23UE,Nms Contract,HI102,Contracted Services,6970,Pension Recharge July 16,30/08/2016,422743,10494.91,NET,Enterprise (Aol) Ltd,06695G
Gloucester City Council,23UE,Parks Contract Management,LP100,Maint Of Grounds - General,3030,Gloucester Park - Tango Seats,30/08/2016,422518,79,NET,Greenfields Garden Services Ltd,48130G
Gloucester City Council,23UE,Registration Of Electors,RS400,Fees For Services Received,5350,Hire,30/08/2016,422597,50,NET,Old Richian Sports & Social Club,04328V
Gloucester City Council,23UE,Statutory Testing,RS310,Fees For Services Received,5350,Additional Works to fire alarm system.,30/08/2016,422779,286.24,NET,Allcoopers Ltd,52921E
Gloucester City Council,23UE,Statutory Testing,RS310,Fees For Services Received,5350,Remedial Works- Fire Alarm System,30/08/2016,422561,720,NET,Allcoopers Ltd,52921E
Gloucester City Council,23UE,The Arbor,HC501,Catering Provisions -Food,5110,food,30/08/2016,422747,291.07,NET,Bidvest Foodservice (3663),55585U
Gloucester City Council,23UE,The Arbor,HC501,Catering Provisions -Food,5110,food,30/08/2016,422748,94.64,NET,Bidvest Foodservice (3663),55585U
Gloucester City Council,23UE,Tic Rovercard Sales,LT101,Materials For Sale,5080,Tickets July 2016,30/08/2016,422654,1680,NET,Stagecoach Services Ltd,56554W
Gloucester City Council,23UE,Tic Rovercard Sales,LT101,Sale Of Goods And Services,9230,Tickets July 2016,30/08/2016,422654,-140,NET,Stagecoach Services Ltd,56554W
Gloucester City Council,23UE,Tourism Marketing,LT100,Security Services Fees,5351,Services September 2016,30/08/2016,422736,92.47,NET,G4s Cash Solutions (Uk) Ltd,04290V
Gloucester City Council,23UE,Allotments,HI104,Water Supply,3400,acct 7890105225,31/08/2016,420957,1298.95,NET,Severn Trent Water,01823H
Gloucester City Council,23UE,Allotments,HI104,Water Supply,3400,Charges July 16,31/08/2016,422630,149.71,NET,Severn Trent Water,01823H
Gloucester City Council,23UE,Blackfriars,LA609,Water Supply,3400,acct 7890105225,31/08/2016,420957,373.48,NET,Severn Trent Water,01823H
Gloucester City Council,23UE,Bus Station,RB400,Water Supply,3400,acct 7890105225,31/08/2016,419786,168.77,NET,Severn Trent Water,01823H
Gloucester City Council,23UE,Bus Station,RB400,Water Supply,3400,acct 7890105225,31/08/2016,420957,163.33,NET,Severn Trent Water,01823H
Gloucester City Council,23UE,Bus Station,RB400,Water Supply,3400,Charges July 16,31/08/2016,422630,114.32,NET,Severn Trent Water,01823H
Gloucester City Council,23UE,REDACTED,REDACTED,REDACTED,REDACTED,REDACTED,31/08/2016,REDACTED,75,NET,REDACTED,REDACTED
Gloucester City Council,23UE,Council Streetcare Team,HI101,Water Supply,3400,acct 7890105225,31/08/2016,419786,127.68,NET,Severn Trent Water,01823H
Gloucester City Council,23UE,Council Streetcare Team,HI101,Water Supply,3400,acct 7890105225,31/08/2016,420957,6.34,NET,Severn Trent Water,01823H
Gloucester City Council,23UE,Council Streetcare Team,HI101,Water Supply,3400,Charges Jan- Apr 16,31/08/2016,420516,169.67,NET,Severn Trent Water Ltd,04182Z
Gloucester City Council,23UE,Council Streetcare Team,HI101,Water Supply,3400,Charges July 16,31/08/2016,422630,4.44,NET,Severn Trent Water,01823H
Gloucester City Council,23UE,Countryside Unit,LP201,Water Supply,3400,acct 7890105225,31/08/2016,419786,249.63,NET,Severn Trent Water,01823H
Gloucester City Council,23UE,Countryside Unit,LP201,Water Supply,3400,acct 7890105225,31/08/2016,420957,58.33,NET,Severn Trent Water,01823H
Gloucester City Council,23UE,Countryside Unit,LP201,Water Supply,3400,Charges July 16,31/08/2016,422630,71.4,NET,Severn Trent Water,01823H
Gloucester City Council,23UE,Crematorium,HC200,Water Supply,3400,acct 7890105225,31/08/2016,419786,1388.11,NET,Severn Trent Water,01823H
Gloucester City Council,23UE,Crematorium,HC200,Water Supply,3400,acct 7890105225,31/08/2016,420957,1938.75,NET,Severn Trent Water,01823H
Gloucester City Council,23UE,Crematorium,HC200,Water Supply,3400,Charges Jan- Apr 16,31/08/2016,420516,36.39,NET,Severn Trent Water Ltd,04182Z
Gloucester City Council,23UE,Crematorium,HC200,Water Supply,3400,Charges July 16,31/08/2016,422630,25.47,NET,Severn Trent Water,01823H
Gloucester City Council,23UE,Docks Complex - Services,RB100,Water Supply,3400,acct 7890105225,31/08/2016,420957,1236.14,NET,Severn Trent Water,01823H
Gloucester City Council,23UE,Docks Complex - Services,RB100,Water Supply,3400,Charges Jan- Apr 16,31/08/2016,420516,1217.14,NET,Severn Trent Water Ltd,04182Z
Gloucester City Council,23UE,Docks Complex - Services,RB100,Water Supply,3400,CHARGES JAN- APR 16 acct 7890105225,31/08/2016,423019,5428.14,NET,Severn Trent Water,01823H
Gloucester City Council,23UE,Docks Complex - Services,RB100,Water Supply,3400,Charges July 16,31/08/2016,422630,608.1,NET,Severn Trent Water,01823H
Gloucester City Council,23UE,Eastgate Rooftop Emerg Works,RY159,Contract Payments,0020,Eastgate Roof Top Car Park,31/08/2016,422979,62872.31,CAP,Universal Sealants (Uk) Ltd,15743Z
Gloucester City Council,23UE,Folk Museum,LM210,Water Supply,3400,acct 7890105225,31/08/2016,420957,814.45,NET,Severn Trent Water,01823H
Gloucester City Council,23UE,Gloucester Guildhall,LA100,General Repair/Maint Buildings,3000,Water Resistant Case,31/08/2016,422451,73.94,NET,Cpc,52980M
Gloucester City Council,23UE,Gloucester Guildhall,LA100,Maintenance Of Equipment,5030,Various Items,31/08/2016,422450,44.06,NET,Cpc,52980M
Gloucester City Council,23UE,Gloucester Guildhall,LA100,Water Supply,3400,acct 7890105225,31/08/2016,420957,360.67,NET,Severn Trent Water,01823H
Gloucester City Council,23UE,Gloucester Guildhall,LA100,Water Supply,3400,Charges Jan- Apr 16,31/08/2016,420516,306.57,NET,Severn Trent Water Ltd,04182Z
Gloucester City Council,23UE,Grants To Voluntary Sector,FG100,Grants To Advice Centres,7100,Grant,31/08/2016,422990,500,NET,Fair Shares,07250D
Gloucester City Council,23UE,Grants To Voluntary Sector,FG100,Members Allocation Fund,7100F,members allocation grant,31/08/2016,422987,2000,NET,Beech Green Nursery,17199H
Gloucester City Council,23UE,Grants To Voluntary Sector,FG100,Members Allocation Fund,7100F,members allocation grant,31/08/2016,422988,401.76,NET,Quedgeley Wanderers Football Club,10199B
Gloucester City Council,23UE,REDACTED,REDACTED,REDACTED,REDACTED,REDACTED,31/08/2016,REDACTED,300,NET,REDACTED,REDACTED
Gloucester City Council,23UE,REDACTED,REDACTED,REDACTED,REDACTED,REDACTED,31/08/2016,REDACTED,840,NET,REDACTED,REDACTED
Gloucester City Council,23UE,REDACTED,REDACTED,REDACTED,REDACTED,REDACTED,31/08/2016,REDACTED,130,NET,REDACTED,REDACTED
Gloucester City Council,23UE,Homelessness,CH120,Rent In Advance,5516,tenancy rescue,31/08/2016,422980,500,NET,Barton & Tredworth Developments Ltd,58165T
Gloucester City Council,23UE,Homelessness Prevention,CH122,Fees For Services Received,5350,tenancy rescue,31/08/2016,422980,700,NET,Barton & Tredworth Developments Ltd,58165T
Gloucester City Council,23UE,Investment Property,RB500,Water Supply,3400,acct 7890105225,31/08/2016,419786,133.59,NET,Severn Trent Water,01823H
Gloucester City Council,23UE,Investment Property,RB500,Water Supply,3400,acct 7890105225,31/08/2016,420957,155.33,NET,Severn Trent Water,01823H
Gloucester City Council,23UE,Investment Property,RB500,Water Supply,3400,Charges Jan- Apr 16,31/08/2016,420516,262.3,NET,Severn Trent Water Ltd,04182Z
Gloucester City Council,23UE,Investment Property,RB500,Water Supply,3400,Charges July 16,31/08/2016,422630,279.88,NET,Severn Trent Water,01823H
Gloucester City Council,23UE,Off Street Car Parks,PP110,Water Supply,3400,acct 7890105225,31/08/2016,419786,1656.18,NET,Severn Trent Water,01823H
Gloucester City Council,23UE,Off Street Car Parks,PP110,Water Supply,3400,acct 7890105225,31/08/2016,420957,3043.34,NET,Severn Trent Water,01823H
Gloucester City Council,23UE,Off Street Car Parks,PP110,Water Supply,3400,Charges Jan- Apr 16,31/08/2016,420516,3436.07,NET,Severn Trent Water Ltd,04182Z
Gloucester City Council,23UE,Off Street Car Parks,PP110,Water Supply,3400,Charges July 16,31/08/2016,422630,1121.87,NET,Severn Trent Water,01823H
Gloucester City Council,23UE,Public Conveniences (Client),HI400,Water Supply,3400,acct 7890105225,31/08/2016,420957,813.3,NET,Severn Trent Water,01823H
Gloucester City Council,23UE,Retail Market - Landlord,HM300,Radio Equipment,5416,Charges 16/17,31/08/2016,422600,382,NET,Prs For Music,05077M
Gloucester City Council,23UE,Robinswood All Paths Project,LY162,Contract Payments,0020,All Paths project fees,31/08/2016,422468,6250,CAP,Gloucestershire Wildlife Trust,15576A
Gloucester City Council,23UE,Safer Stronger Communities,FP841,Other Minor Supplies Services,5590,Packed Lunches,31/08/2016,422756,42,NET,Hedleys,58915R
Gloucester City Council,23UE,Shopmobility,PE200,Water Supply,3400,Charges July 16,31/08/2016,422630,203.12,NET,Severn Trent Water,01823H
Gloucester City Council,23UE,Statutory Testing,RS310,Fees For Services Received,5350,Kit supplied,31/08/2016,422557,416.96,NET,Allcoopers Ltd,52921E
Gloucester City Council,23UE,Tourism Marketing,LT100,Water Supply,3400,acct 7890105225,31/08/2016,420957,119.78,NET,Severn Trent Water,01823H
Gloucester City Council,23UE,Utilities,PT502,Electricity Supply,3110,Annual Charges Nov 15- Nov 16,31/08/2016,420511,720,NET,Npower,55506T
Gloucester City Council,23UE,Utilities,PT502,Electricity Supply,3110,GROSVENOR HOUSE,31/08/2016,411177,135.44,NET,E.On,01484H
Gloucester City Council,23UE,Asset Management,RS300,General Repair/Maint Buildings,3000,St Oswalds Priory repairs,,423053,26196.3,NET,Sally Strachey Historic Conservation Ltd,14202B
Gloucester City Council,23UE,Blackfriars,LA609,Hire Of Equipment,5020,screen hire,,423108,28,NET,Uss Unique Sound Systems Ltd,59571S
Gloucester City Council,23UE,Blackfriars Weddings,LA220,Catering Provisions -Liquor,5111,drinks,,423026,321.24,NET,Cellar Supplies Cheltenham Ltd,01563L
Gloucester City Council,23UE,Blackfriars Weddings,LA220,Hire Of Equipment,5020,back bar cooler,,423009,255.99,NET,Nisbets,55372P
Gloucester City Council,23UE,Blackfriars Weddings,LA220,Hire Of Equipment,5020,table hire,,423105,72,NET,Valley Furniture Hire Ltd,08324P
Gloucester City Council,23UE,Business Transformation & Tech,RT700,Computer Hardware Maintenance,5426,scanner lease JUN-AUG16,,422982,210,NET,Stanford Marsh Ltd,51139M
Gloucester City Council,23UE,Business Transformation & Tech,RT700,Computer Hardware Maintenance,5426,scanner lease JUN-AUG16,,422984,315,NET,Stanford Marsh Ltd,51139M
Gloucester City Council,23UE,Cemeteries,HC300,Routine R And M - Vehicles,4011,Beacon fixing,,423015,65,NET,Frank Sutton Ltd - Agric'L Engineer,42875D
Gloucester City Council,23UE,Cemeteries,HC300,Routine R And M - Vehicles,4011,excavator repairs,,423014,259.2,NET,Jay Bee Plant Sales Ltd,11156L
Gloucester City Council,23UE,REDACTED,REDACTED,REDACTED,REDACTED,REDACTED,,REDACTED,225,NET,REDACTED,REDACTED
Gloucester City Council,23UE,Client Revs & Bens Contract,RT240,Fees For Services Received,5350,warrants,,423106,60,NET,Assevarate Ltd,11749A
Gloucester City Council,23UE,Contact Centre,RB300,Printing,5300,benefits receipt of info packs,,423012,289,NET,Alpha Colour Printers Ltd,00945B
Gloucester City Council,23UE,Contact Centre,RB300,Stationery,5302,storage boxes,,423024,26.16,NET,Lyreco Uk Ltd,11746G
Gloucester City Council,23UE,Development Management,PT200,Advertising And Publicity,5702,adverts,,423109,204.51,NET,Local World Ltd,08556P
Gloucester City Council,23UE,Financial Services,RT200,Vocational Training,2970,AAT Level 4 fees,,423103,1987,NET,Gloucestershire College,06835B
Gloucester City Council,23UE,Gloucester Guildhall,LA100,Fees For Services Received,5350,Whare did you go screening fees,,423031,200,NET,Shared Syndicate C.I.C,15838L
Gloucester City Council,23UE,Guildhall Bar And Caf�,LA210,Catering Provisions -Liquor,5111,drinks,,423025,886.48,NET,Cellar Supplies Cheltenham Ltd,01563L
Gloucester City Council,23UE,Guildhall Events,LA200,Fees For Services Received,5350,Lovers Rock night,,423029,150,NET,Leap Audio,15059W
Gloucester City Council,23UE,REDACTED,REDACTED,REDACTED,REDACTED,REDACTED,,REDACTED,300,NET,REDACTED,REDACTED
Gloucester City Council,23UE,REDACTED,REDACTED,REDACTED,REDACTED,REDACTED,,REDACTED,30,NET,REDACTED,REDACTED
,,,,,,,,Sum:,10548590.05,,,
